Workbook

Sheet MENU
A6: C1
A7: =LEFT(C7,4) -> 
A10: C5. | C10: C5. ELECTORES POR PAÍS DE ORIGEN
C25: Observaciones al
C26: correo electrónico: dejecutiva@tse.go.cr
A27: =LEFT(C27,4) -> 

Sheet 1
A1: CUADRO 1
A2: COSTA RICA: TOTAL Y VARIACIÓN DEL ELECTORADO 1/
A3: ENTRE FEBRERO 2014 Y DICIEMBRE 2015
A4: SEGÚN PROVINCIA Y SEXO
A6: Provincia y sexo | B6: Padrón Nacional Electoral | E6: Variación
B7: Febrero 2014 | C7: Diciembre 2015 | E7: Absoluto | F7: Porcentaje
A9: Costa Rica | B9: =B13+B17+B21+B25+B29+B33+B37 -> 3065667 | C9: 3178364 | E9: =C9-B9 -> 112697 | F9: =E9/B9*100 -> 3.676100503
A10: Hombres | B10: 1529361 | C10: 1584178 | E10: =C10-B10 -> 54817 | F10: =E10/B10*100 -> 3.584307433
A11: Mujeres | B11: 1536306 | C11: 1594186 | E11: =C11-B11 -> 57880 | F11: =E11/B11*100 -> 3.767478614
A13: San José | B13: =SUM(B14:B15) -> 1063061 | C13: =+C14+C15 -> 1088828 | E13: =C13-B13 -> 25767 | F13: =E13/B13*100 -> 2.423849619
A14: Hombres | B14: 518312 | C14: 530482 | E14: =C14-B14 -> 12170 | F14: =E14/B14*100 -> 2.348006606
A15: Mujeres | B15: 544749 | C15: 558346 | E15: =C15-B15 -> 13597 | F15: =E15/B15*100 -> 2.496011925
A17: Alajuela | B17: =+B18+B19 -> 577493 | C17: =+C18+C19 -> 604089 | E17: =C17-B17 -> 26596 | F17: =E17/B17*100 -> 4.605423789
A18: Hombres | B18: 291277 | C18: 304791 | E18: =C18-B18 -> 13514 | F18: =E18/B18*100 -> 4.639569894
A19: Mujeres | B19: 286216 | C19: 299298 | E19: =C19-B19 -> 13082 | F19: =E19/B19*100 -> 4.570673897
A21: Cartago | B21: =+B22+B23 -> 359985 | C21: =+C22+C23 -> 374190 | E21: =C21-B21 -> 14205 | F21: =E21/B21*100 -> 3.94599775
A22: Hombres | B22: 179449 | C22: 186298 | E22: =C22-B22 -> 6849 | F22: =E22/B22*100 -> 3.816683292
A23: Mujeres | B23: 180536 | C23: 187892 | E23: =C23-B23 -> 7356 | F23: =E23/B23*100 -> 4.074533611
A25: Heredia | B25: =+B26+B27 -> 306901 | C25: =+C26+C27 -> 319674 | E25: =C25-B25 -> 12773 | F25: =E25/B25*100 -> 4.161928439
A26: Hombres | B26: 151098 | C26: 157161 | E26: =C26-B26 -> 6063 | F26: =E26/B26*100 -> 4.012627566
A27: Mujeres | B27: 155803 | C27: 162513 | E27: =C27-B27 -> 6710 | F27: =E27/B27*100 -> 4.306720666
A29: Guanacaste | B29: =+B30+B31 -> 221688 | C29: =+C30+C31 -> 231102 | E29: =C29-B29 -> 9414 | F29: =E29/B29*100 -> 4.246508607
A30: Hombres | B30: 112201 | C30: 116777 | E30: =C30-B30 -> 4576 | F30: =E30/B30*100 -> 4.078395023
A31: Mujeres | B31: 109487 | C31: 114325 | E31: =C31-B31 -> 4838 | F31: =E31/B31*100 -> 4.418789445
A33: Puntarenas | B33: =+B34+B35 -> 287254 | C33: =+C34+C35 -> 299227 | E33: =C33-B33 -> 11973 | F33: =E33/B33*100 -> 4.168088173
A34: Hombres | B34: 147881 | C34: 153648 | E34: =C34-B34 -> 5767 | F34: =E34/B34*100 -> 3.899757237
A35: Mujeres | B35: 139373 | C35: 145579 | E35: =C35-B35 -> 6206 | F35: =E35/B35*100 -> 4.452799323
A37: Limón | B37: =+B38+B39 -> 249285 | C37: =+C38+C39 -> 261254 | E37: =C37-B37 -> 11969 | F37: =E37/B37*100 -> 4.801331809
A38: Hombres | B38: 129143 | C38: 135021 | E38: =C38-B38 -> 5878 | F38: =E38/B38*100 -> 4.551543638
A39: Mujeres | B39: 120142 | C39: 126233 | E39: =C39-B39 -> 6091 | F39: =E39/B39*100 -> 5.06983403
A42: 1/ Se excluyen los costarricenses inscritos(as) que pueden ejercer el voto en extranjero porque solo están facultados para designar los puestos de Presidencia y Vicepresidencias, así como en consultas populares de orden nacional, según el artículo 187 del Código Electoral.
A44: Fuente: Sección Padrón Electoral del Tribunal Supremo de Elecciones.

Sheet 2
A1: CUADRO 2
A2: COSTA RICA: ELECTORADO EN EL PADRÓN PARA LAS ELECCIONES DE
A3: FEBRERO 2014 Y EN EL PADRÓN AL 31 DE DICIEMBRE 2015
A4: POR SEXO, SEGÚN PROVINCIA Y CANTÓN
A6: Provincia y cantón | B6: Padrón Nacional Electoral
B7: Febrero 2014 | F7: Diciembre 2015
B8: Total | C8: Hombres | D8: Mujeres | F8: Total | G8: Hombres | H8: Mujeres
A9: Costa Rica | B9: =SUM(B10:B16) -> 3065667 | C9: =SUM(C10:C16) -> 1529361 | D9: =SUM(D10:D16) -> 1536306 | E9: =E17+E38+E54+E63+E74+E86+E98 -> 0 | F9: =F17+F38+F54+F63+F74+F86+F98 -> 3178364 | G9: =G17+G38+G54+G63+G74+G86+G98 -> 1584178 | H9: =H17+H38+H54+H63+H74+H86+H98 -> 1594186
A10: San José | B10: =B17 -> 1063061 | C10: 518312 | D10: 544749 | E10: 0 | F10: =F17 -> 1088828 | G10: 530482 | H10: 558346
A11: Alajuela | B11: =B38 -> 577493 | C11: 291277 | D11: 286216 | E11: 0 | F11: =F38 -> 604089 | G11: 304791 | H11: 299298
A12: Cartago | B12: =B54 -> 359985 | C12: 179449 | D12: 180536 | E12: 0 | F12: =F54 -> 374190 | G12: 186298 | H12: 187892
A13: Heredia | B13: =B63 -> 306901 | C13: 151098 | D13: 155803 | E13: 0 | F13: 319674 | G13: 157161 | H13: 162513
A14: Guanacaste | B14: =B74 -> 221688 | C14: 112201 | D14: 109487 | E14: 0 | F14: 231102 | G14: 116777 | H14: 114325
A15: Puntarenas | B15: =B86 -> 287254 | C15: 147881 | D15: 139373 | E15: 0 | F15: 299227 | G15: 153648 | H15: 145579
A16: Limón | B16: =B98 -> 249285 | C16: 129143 | D16: 120142 | E16: 0 | F16: 261254 | G16: 135021 | H16: 126233
A17: San José | B17: =SUM(C17:D17) -> 1063061 | C17: =SUM(C18:C37) -> 518312 | D17: =SUM(D18:D37) -> 544749 | F17: =SUM(F18:F37) -> 1088828 | G17: =SUM(G18:G37) -> 530482 | H17: =SUM(H18:H37) -> 558346
A18: San José | B18: =+C18+D18 -> 228847 | C18: 110114 | D18: 118733 | F18: =SUM(G18:H18) -> 231684 | G18: 111893 | H18: 119791
A19: Escazú | B19: 43354 | C19: 21195 | D19: 22159 | F19: 44982 | G19: 21974 | H19: 23008
A20: Desamparados | B20: 152242 | C20: 74550 | D20: 77692 | F20: 156610 | G20: 76637 | H20: 79973
A21: Puriscal | B21: 26459 | C21: 13322 | D21: 13137 | F21: 27437 | G21: 13782 | H21: 13655
A22: Tarrazú | B22: 11458 | C22: 5814 | D22: 5644 | F22: 11843 | G22: 5965 | H22: 5878
A23: Aserrí | B23: 40321 | C23: 20123 | D23: 20198 | F23: 41808 | G23: 20847 | H23: 20961
A24: Mora | B24: 19190 | C24: 9521 | D24: 9669 | F24: 20263 | G24: 10006 | H24: 10257
A25: Goicoechea | B25: 87701 | C25: 41925 | D25: 45776 | F25: 88592 | G25: 42299 | H25: 46293
A26: Santa Ana | B26: 31041 | C26: 15246 | D26: 15795 | F26: 32863 | G26: 16097 | H26: 16766
A27: Alajuelita | B27: 47597 | C27: 23554 | D27: 24043 | F27: 49065 | G27: 24259 | H27: 24806
A28: Vázquez de Coronado | B28: 49673 | C28: 24016 | D28: 25657 | F28: 51588 | G28: 24845 | H28: 26743
A29: Acosta | B29: 15551 | C29: 8044 | D29: 7507 | F29: 16028 | G29: 8220 | H29: 7808
A30: Tibás | B30: 55540 | C30: 26143 | D30: 29397 | F30: 55709 | G30: 26170 | H30: 29539
A31: Moravia | B31: 42357 | C31: 20301 | D31: 22056 | F31: 43464 | G31: 20824 | H31: 22640
A32: Montes de Oca | B32: 41489 | C32: 19500 | D32: 21989 | F32: 41908 | G32: 19679 | H32: 22229
A33: Turrubares | B33: 4375 | C33: 2280 | D33: 2095 | F33: 4484 | G33: 2321 | H33: 2163
A34: Dota | B34: 5193 | C34: 2610 | D34: 2583 | F34: 5376 | G34: 2697 | H34: 2679
A35: Curridabat | B35: 46270 | C35: 22273 | D35: 23997 | F35: 47468 | G35: 22774 | H35: 24694
A36: Pérez Zeledón | B36: 105670 | C36: 53322 | D36: 52348 | F36: 108626 | G36: 54587 | H36: 54039
A37: León Cortés | B37: 8733 | C37: 4459 | D37: 4274 | F37: 9030 | G37: 4606 | H37: 4424
A38: Alajuela | B38: =SUM(B39:B53) -> 577493 | C38: =SUM(C39:C53) -> 291277 | D38: =SUM(D39:D53) -> 286216 | F38: =SUM(F39:F53) -> 604089 | G38: =SUM(G39:G53) -> 304791 | H38: =SUM(H39:H53) -> 299298
A39: Alajuela | B39: =+C39+D39 -> 185688 | C39: 93494 | D39: 92194 | F39: =SUM(G39:H39) -> 193569 | G39: 97613 | H39: 95956
A40: San Ramón | B40: 58067 | C40: 28929 | D40: 29138 | F40: 60762 | G40: 30281 | H40: 30481
A41: Grecia | B41: 55007 | C41: 27426 | D41: 27581 | F41: 57117 | G41: 28502 | H41: 28615
A42: San Mateo | B42: 4044 | C42: 2100 | D42: 1944 | F42: 4365 | G42: 2242 | H42: 2123
A43: Atenas | B43: 18923 | C43: 9486 | D43: 9437 | F43: 19661 | G43: 9886 | H43: 9775
A44: Naranjo | B44: 29894 | C44: 14815 | D44: 15079 | F44: 30801 | G44: 15274 | H44: 15527
A45: Palmares | B45: 27132 | C45: 13436 | D45: 13696 | F45: 28151 | G45: 13946 | H45: 14205
A46: Poás | B46: 19747 | C46: 9940 | D46: 9807 | F46: 20803 | G46: 10455 | H46: 10348
A47: Orotina | B47: 14116 | C47: 7035 | D47: 7081 | F47: 14762 | G47: 7408 | H47: 7354
A48: San Carlos | B48: 97702 | C48: 49938 | D48: 47764 | F48: 102906 | G48: 52494 | H48: 50412
A49: Zarcero | B49: 8490 | C49: 4259 | D49: 4231 | F49: 8802 | G49: 4382 | H49: 4420
A50: Valverde Vega | B50: 13710 | C50: 6818 | D50: 6892 | F50: 14208 | G50: 7057 | H50: 7151
A51: Upala | B51: 24597 | C51: 12821 | D51: 11776 | F51: 26574 | G51: 13814 | H51: 12760
A52: Los Chiles | B52: 10457 | C52: 5621 | D52: 4836 | F52: 11212 | G52: 6047 | H52: 5165
A53: Guatuso | B53: 9919 | C53: 5159 | D53: 4760 | F53: 10396 | G53: 5390 | H53: 5006
A54: Cartago | B54: =SUM(B55:B62) -> 359985 | C54: =SUM(C55:C62) -> 179449 | D54: =SUM(D55:D62) -> 180536 | F54: 374190 | G54: =SUM(G55:G62) -> 186298 | H54: =SUM(H55:H62) -> 187892
A55: Cartago | B55: =+C55+D55 -> 113463 | C55: 56296 | D55: 57167 | F55: 117991 | G55: 58534 | H55: 59457
A56: Paraíso | B56: 43000 | C56: 21389 | D56: 21611 | F56: 44765 | G56: 22283 | H56: 22482
A57: La Unión | B57: 64441 | C57: 31956 | D57: 32485 | F57: 67581 | G57: 33412 | H57: 34169
A58: Jiménez | B58: 11308 | C58: 5836 | D58: 5472 | F58: 11681 | G58: 6002 | H58: 5679
A59: Turrialba | B59: 54654 | C59: 27475 | D59: 27179 | F59: 55945 | G59: 28019 | H59: 27926
A60: Alvarado | B60: 9484 | C60: 4788 | D60: 4696 | F60: 9985 | G60: 5007 | H60: 4978
A61: Oreamuno | B61: 33361 | C61: 16365 | D61: 16996 | F61: 34952 | G61: 17160 | H61: 17792
A62: El Guarco | B62: 30274 | C62: 15344 | D62: 14930 | F62: 31290 | G62: 15881 | H62: 15409
A63: Heredia | B63: =SUM(B64:B73) -> 306901 | C63: =SUM(C64:C73) -> 151098 | D63: =SUM(D64:D73) -> 155803 | F63: =SUM(G63:H63) -> 319674 | G63: =SUM(G64:G73) -> 157161 | H63: =SUM(H64:H73) -> 162513
A64: Heredia | B64: =+C64+D64 -> 90600 | C64: 43399 | D64: 47201 | F64: 93490 | G64: 44718 | H64: 48772
A65: Barva | B65: 30088 | C65: 14747 | D65: 15341 | F65: 31461 | G65: 15413 | H65: 16048
A66: Santo Domingo | B66: 32559 | C66: 16038 | D66: 16521 | F66: 33424 | G66: 16466 | H66: 16958
A67: Santa Bárbara | B67: 24726 | C67: 12278 | D67: 12448 | F67: 25705 | G67: 12759 | H67: 12946
A68: San Rafael | B68: 32186 | C68: 15986 | D68: 16200 | F68: 33543 | G68: 16659 | H68: 16884
A69: San Isidro | B69: 14503 | C69: 7235 | D69: 7268 | F69: 15301 | G69: 7678 | H69: 7623
A70: Belén | B70: 17266 | C70: 8510 | D70: 8756 | F70: 18012 | G70: 8879 | H70: 9133
A71: Flores | B71: 15087 | C71: 7390 | D71: 7697 | F71: 15949 | G71: 7778 | H71: 8171
A72: San Pablo | B72: 20119 | C72: 9754 | D72: 10365 | F72: 21083 | G72: 10175 | H72: 10908
A73: Sarapiquí | B73: 29767 | C73: 15761 | D73: 14006 | F73: 31706 | G73: 16636 | H73: 15070
A74: Guanacaste | B74: =SUM(B75:B85) -> 221688 | C74: =SUM(C75:C85) -> 112201 | D74: =SUM(D75:D85) -> 109487 | F74: 231102 | G74: =SUM(G75:G85) -> 116777 | H74: =SUM(H75:H85) -> 114325
A75: Liberia | B75: =+C75+D75 -> 41245 | C75: 20723 | D75: 20522 | F75: 43059 | G75: 21575 | H75: 21484
A76: Nicoya | B76: 38300 | C76: 19245 | D76: 19055 | F76: 39567 | G76: 19852 | H76: 19715
A77: Santa Cruz | B77: 37832 | C77: 19323 | D77: 18509 | F77: 39431 | G77: 20050 | H77: 19381
A78: Bagaces | B78: 12446 | C78: 6320 | D78: 6126 | F78: 13067 | G78: 6624 | H78: 6443
A79: Carrillo | B79: 22180 | C79: 11268 | D79: 10912 | F79: 23197 | G79: 11760 | H79: 11437
A80: Cañas | B80: 18440 | C80: 9272 | D80: 9168 | F80: 19065 | G80: 9561 | H80: 9504
A81: Abangares | B81: 12801 | C81: 6492 | D81: 6309 | F81: 13237 | G81: 6733 | H81: 6504
A82: Tilarán | B82: 14132 | C82: 7079 | D82: 7053 | F82: 14622 | G82: 7337 | H82: 7285
A83: Nandayure | B83: 7979 | C83: 4134 | D83: 3845 | F83: 8278 | G83: 4279 | H83: 3999
A84: La Cruz | B84: 10846 | C84: 5518 | D84: 5328 | F84: 11808 | G84: 6030 | H84: 5778
A85: Hojancha | B85: 5487 | C85: 2827 | D85: 2660 | F85: 5771 | G85: 2976 | H85: 2795
A86: Puntarenas | B86: =SUM(B87:B97) -> 287254 | C86: =SUM(C87:C97) -> 147881 | D86: =SUM(D87:D97) -> 139373 | F86: 299227 | G86: =SUM(G87:G97) -> 153648 | H86: =SUM(H87:H97) -> 145579
A87: Puntarenas | B87: =+C87+D87 -> 82240 | C87: 42269 | D87: 39971 | F87: 84342 | G87: 43228 | H87: 41114
A88: Esparza | B88: 20599 | C88: 10214 | D88: 10385 | F88: 21684 | G88: 10766 | H88: 10918
A89: Buenos Aires | B89: 29985 | C89: 15711 | D89: 14274 | F89: 30931 | G89: 16122 | H89: 14809
A90: Montes de Oro | B90: 9616 | C90: 4807 | D90: 4809 | F90: 9941 | G90: 4962 | H90: 4979
A91: Osa | B91: 20090 | C91: 10649 | D91: 9441 | F91: 21229 | G91: 11201 | H91: 10028
A92: Aguirre | B92: 18025 | C92: 9561 | D92: 8464 | F92: 18798 | G92: 9962 | H92: 8836
A93: Golfito | B93: 27210 | C93: 14223 | D93: 12987 | F93: 28587 | G93: 14881 | H93: 13706
A94: Coto Brus | B94: 27667 | C94: 13980 | D94: 13687 | F94: 28684 | G94: 14490 | H94: 14194
A95: Parrita | B95: 10844 | C95: 5604 | D95: 5240 | F95: 11285 | G95: 5816 | H95: 5469
A96: Corredores | B96: 31122 | C96: 15640 | D96: 15482 | F96: 32790 | G96: 16460 | H96: 16330
A97: Garabito | B97: 9856 | C97: 5223 | D97: 4633 | F97: 10956 | G97: 5760 | H97: 5196
A98: Limón | B98: =SUM(B99:B104) -> 249285 | C98: =SUM(C99:C104) -> 129143 | D98: =SUM(D99:D104) -> 120142 | F98: 261254 | G98: =SUM(G99:G104) -> 135021 | H98: =SUM(H99:H104) -> 126233
A99: Limón | B99: =+C99+D99 -> 64961 | C99: 32762 | D99: 32199 | F99: 66628 | G99: 33472 | H99: 33156
A100: Pococí | B100: 83344 | C100: 43586 | D100: 39758 | F100: 87921 | G100: 45944 | H100: 41977
A101: Siquirres | B101: 37389 | C101: 19658 | D101: 17731 | F101: 38953 | G101: 20408 | H101: 18545
A102: Talamanca | B102: 17572 | C102: 9254 | D102: 8318 | F102: 19165 | G102: 10049 | H102: 9116
A103: Matina | B103: 19837 | C103: 10370 | D103: 9467 | F103: 20908 | G103: 10883 | H103: 10025
A104: Guácimo | B104: 26182 | C104: 13513 | D104: 12669 | F104: 27679 | G104: 14265 | H104: 13414
A107: 1/ Se excluyen los costarricenses inscritos(as) que pueden ejercer el voto en extranjero porque solo están facultados para designar los puestos de Presidencia y Vicepresidencias, así como en consultas populares de orden nacional, según el artículo 187 del Código Electoral.
A108: Fuente: Sección Padrón Electoral del Tribunal Supremo de Elecciones.

Sheet 3
A1: CUADRO 3
A2: COSTA RICA: ELECTORADO 1/ POR PROVINCIA, SEGÚN SEXO Y
A3: GRUPO DE EDAD, AL 31 DE DICIEMBRE 2015
A5: Sexo y grupo de edad | B5: Total | C5: San José | D5: Alajuela | E5: Cartago | F5: Heredia | G5: Guanacaste | H5: Puntarenas | I5: Limón
A7: Costa Rica | B7: =B24+B41 -> 3178364 | C7: 1088828 | D7: 604089 | E7: 374190 | F7: 319674 | G7: 231102 | H7: 299227 | I7: 261254
A8: 18 - 19 | B8: 206506 | C8: =C25+C42 -> 64689 | D8: 40727 | E8: 24010 | F8: 19678 | G8: 15891 | H8: 21163 | I8: 20348
A9: 20 - 24 | B9: 309738 | C9: 99527 | D9: 60202 | E9: 37029 | F9: 29384 | G9: 23353 | H9: 30894 | I9: 29349
A10: 25 - 29 | B10: 395931 | C10: 131838 | D10: 77518 | E10: 47771 | F10: 38314 | G10: 28412 | H10: 37692 | I10: 34386
A11: 30 - 34 | B11: 365791 | C11: 124260 | D11: 69361 | E11: 42374 | F11: 37567 | G11: 26344 | H11: 35157 | I11: 30728
A12: 35 - 39 | B12: 314867 | C12: 107812 | D12: 58241 | E12: 37517 | F12: 33459 | G12: 22867 | H12: 29491 | I12: 25480
A13: 40 - 44 | B13: 270440 | C13: 89969 | D13: 49932 | E13: 33077 | F13: 28319 | G13: 19758 | H13: 26131 | I13: 23254
A14: 45 - 49 | B14: 271950 | C14: 91309 | D14: 51890 | E14: 33244 | F14: 27485 | G14: 19587 | H14: 26058 | I14: 22377
A15: 50 - 54 | B15: 266305 | C15: 92365 | D15: 51361 | E15: 31772 | F15: 27191 | G15: 18798 | H15: 24256 | I15: 20562
A16: 55 - 59 | B16: 227390 | C16: 81394 | D16: 42933 | E16: 26375 | F16: 23349 | G16: 15903 | H16: 20313 | I16: 17123
A17: 60 - 64 | B17: 176786 | C17: 65131 | D17: 32122 | E17: 19842 | F17: 18394 | G17: 12380 | H17: 15539 | I17: 13378
A18: 65 - 69 | B18: 127696 | C18: 47946 | D18: 23427 | E18: 13916 | F18: 12981 | G18: 9185 | H18: 11196 | I18: 9045
A19: 70 - 74 | B19: 92572 | C19: 34360 | D19: 17681 | E19: 10552 | F19: 9026 | G19: 6646 | H19: 8224 | I19: 6083
A20: 75 - 79 | B20: 66350 | C20: 24643 | D20: 12753 | E20: 7475 | F20: 6282 | G20: 5066 | H20: 5913 | I20: 4218
A21: 80 - 84 | B21: 44212 | C21: 16959 | D21: 8251 | E21: 4881 | F21: 4211 | G21: 3422 | H21: 3846 | I21: 2642
A22: 85 y más | B22: 41830 | C22: 16626 | D22: 7690 | E22: 4355 | F22: 4034 | G22: 3490 | H22: 3354 | I22: 2281
A24: Hombres | B24: =SUM(C24:I24) -> 1584178 | C24: =SUM(C25:C39) -> 530482 | D24: 304791 | E24: 186298 | F24: 157161 | G24: 116777 | H24: 153648 | I24: 135021
A25: 18 - 19 | B25: 104990 | C25: 32554 | D25: 20819 | E25: 12303 | F25: 9929 | G25: 8150 | H25: 10844 | I25: 10391
A26: 20 - 24 | B26: 158233 | C26: 50588 | D26: 31098 | E26: 18951 | F26: 15030 | G26: 11779 | H26: 15722 | I26: 15065
A27: 25 - 29 | B27: 201876 | C27: 66743 | D27: 40209 | E27: 24417 | F27: 19485 | G27: 14446 | H27: 19147 | I27: 17429
A28: 30 - 34 | B28: 185188 | C28: 62543 | D28: 35609 | E28: 21447 | F28: 18802 | G28: 13429 | H28: 17860 | I28: 15498
A29: 35 - 39 | B29: 158501 | C29: 54292 | D29: 29737 | E29: 18744 | F29: 16716 | G29: 11409 | H29: 14788 | I29: 12815
A30: 40 - 44 | B30: 135525 | C30: 44685 | D30: 24993 | E30: 16364 | F30: 14141 | G30: 9957 | H30: 13400 | I30: 11985
A31: 45 - 49 | B31: 135744 | C31: 44901 | D31: 25944 | E31: 16408 | F31: 13475 | G31: 9947 | H31: 13464 | I31: 11605
A32: 50 - 54 | B32: 132336 | C32: 44813 | D32: 25542 | E32: 15791 | F32: 13246 | G32: 9620 | H32: 12594 | I32: 10730
A33: 55 - 59 | B33: 111992 | C33: 38567 | D33: 21495 | E33: 12950 | F33: 11244 | G33: 8068 | H33: 10548 | I33: 9120
A34: 60 - 64 | B34: 86108 | C34: 30164 | D34: 16002 | E34: 9555 | F34: 8733 | G34: 6281 | H34: 8131 | I34: 7242
A35: 65 - 69 | B35: 61609 | C35: 21835 | D35: 11518 | E35: 6639 | F35: 6067 | G35: 4574 | H35: 5956 | I35: 5020
A36: 70 - 74 | B36: 44089 | C36: 15351 | D36: 8615 | E36: 5103 | F36: 4139 | G36: 3296 | H36: 4288 | I36: 3297
A37: 75 - 79 | B37: 31036 | C37: 10582 | D37: 6059 | E37: 3543 | F37: 2812 | G37: 2552 | H37: 3191 | I37: 2297
A38: 80 - 84 | B38: 19633 | C38: 6827 | D38: 3796 | E38: 2220 | F38: 1774 | G38: 1668 | H38: 1957 | I38: 1391
A39: 85 y más | B39: 17318 | C39: 6037 | D39: 3355 | E39: 1863 | F39: 1568 | G39: 1601 | H39: 1758 | I39: 1136
A41: Mujeres | B41: =SUM(C41:I41) -> 1594186 | C41: =SUM(C42:C56) -> 558346 | D41: =SUM(D42:D56) -> 299298 | E41: 187892 | F41: 162513 | G41: 114325 | H41: 145579 | I41: 126233
A42: 18 - 19 | B42: 101516 | C42: 32135 | D42: 19908 | E42: 11707 | F42: 9749 | G42: 7741 | H42: 10319 | I42: 9957
A43: 20 - 24 | B43: 151505 | C43: 48939 | D43: 29104 | E43: 18078 | F43: 14354 | G43: 11574 | H43: 15172 | I43: 14284
A44: 25 - 29 | B44: 194055 | C44: 65095 | D44: 37309 | E44: 23354 | F44: 18829 | G44: 13966 | H44: 18545 | I44: 16957
A45: 30 - 34 | B45: 180603 | C45: 61717 | D45: 33752 | E45: 20927 | F45: 18765 | G45: 12915 | H45: 17297 | I45: 15230
A46: 35 - 39 | B46: 156366 | C46: 53520 | D46: 28504 | E46: 18773 | F46: 16743 | G46: 11458 | H46: 14703 | I46: 12665
A47: 40 - 44 | B47: 134915 | C47: 45284 | D47: 24939 | E47: 16713 | F47: 14178 | G47: 9801 | H47: 12731 | I47: 11269
A48: 45 - 49 | B48: 136206 | C48: 46408 | D48: 25946 | E48: 16836 | F48: 14010 | G48: 9640 | H48: 12594 | I48: 10772
A49: 50 - 54 | B49: 133969 | C49: 47552 | D49: 25819 | E49: 15981 | F49: 13945 | G49: 9178 | H49: 11662 | I49: 9832
A50: 55 - 59 | B50: 115398 | C50: 42827 | D50: 21438 | E50: 13425 | F50: 12105 | G50: 7835 | H50: 9765 | I50: 8003
A51: 60 - 64 | B51: 90678 | C51: 34967 | D51: 16120 | E51: 10287 | F51: 9661 | G51: 6099 | H51: 7408 | I51: 6136
A52: 65 - 69 | B52: 66087 | C52: 26111 | D52: 11909 | E52: 7277 | F52: 6914 | G52: 4611 | H52: 5240 | I52: 4025
A53: 70 - 74 | B53: 48483 | C53: 19009 | D53: 9066 | E53: 5449 | F53: 4887 | G53: 3350 | H53: 3936 | I53: 2786
A54: 75 - 79 | B54: 35314 | C54: 14061 | D54: 6694 | E54: 3932 | F54: 3470 | G54: 2514 | H54: 2722 | I54: 1921
A55: 80 - 84 | B55: 24579 | C55: 10132 | D55: 4455 | E55: 2661 | F55: 2437 | G55: 1754 | H55: 1889 | I55: 1251
A56: 85 y más | B56: 24512 | C56: 10589 | D56: 4335 | E56: 2492 | F56: 2466 | G56: 1889 | H56: 1596 | I56: 1145
A59: 1/ Se excluyen los costarricenses inscritos(as) que pueden ejercer el voto en extranjero porque solo están facultados para designar los puestos de Presidencia y Vicepresidencias, así como en consultas populares de orden nacional, según el artículo 187 del Código Electoral.
A60: Fuente: Sección Padrón Electoral del Tribunal Supremo de Elecciones.

Sheet G1
I2: GRÁFICO 1
A3: POR MES, SEGÚN PROVINCIA Y SEXO, AL 30 DE DICIEMBRE DE 2014 | I3: COSTA RICA: PORCENTAJE DEL ELECTORADO, POR SEXO Y GRUPO DE EDAD
I4: AL 31 DE DICIEMBRE 2015
A6: GRUPOS DE EDAD | B6: ELECTORES | F6: PORCENTAJE
B7: Total | C7: Hombres | D7: Mujeres | E7: Sin lugar | F7: Hombres | G7: Mujeres
B9: =SUM(B11:B25) -> 3178364 | C9: =SUM(C11:C25) -> 1584178 | D9: =SUM(D11:D25) -> 1594186
A11: Menos de 20 | B11: =SUM(C11:D11) -> 206506 | C11: ='3'!B25 -> 104990 | D11: ='3'!B42 -> 101516 | F11: =(C11/($C$9))*-100 -> -6.627411819 | G11: =(D11/($C$9))*100 -> 6.40811828
A12: 20 a 24 | B12: =SUM(C12:D12) -> 309738 | C12: ='3'!B26 -> 158233 | D12: ='3'!B43 -> 151505 | F12: =(C12/($C$9))*-100 -> -9.988334644 | G12: =(D12/($C$9))*100 -> 9.563634895
A13: 25 a 29 | B13: 395931 | C13: ='3'!B27 -> 201876 | D13: ='3'!B44 -> 194055 | F13: =(C13/($C$9))*-100 -> -12.74326496 | G13: 12.24957044
A14: 30 a 34 | B14: 365791 | C14: ='3'!B28 -> 185188 | D14: ='3'!B45 -> 180603 | F14: -11.68984798 | G14: 11.40042344
A15: 35 a 39 | B15: 314867 | C15: ='3'!B29 -> 158501 | D15: ='3'!B46 -> 156366 | F15: -10.00525194 | G15: 9.870481726
A16: 40 a 44 | B16: 270440 | C16: ='3'!B30 -> 135525 | D16: ='3'!B47 -> 134915 | F16: -8.554909865 | G16: 8.516404091
A17: 45 a 49 | B17: 271950 | C17: ='3'!B31 -> 135744 | D17: ='3'!B48 -> 136206 | F17: -8.568734069 | G17: 8.597897458
A18: 50 a 54 | B18: 266305 | C18: ='3'!B32 -> 132336 | D18: ='3'!B49 -> 133969 | F18: -8.353606729 | G18: 8.456688579
A19: 55 a 59 | B19: 227390 | C19: ='3'!B33 -> 111992 | D19: ='3'!B50 -> 115398 | F19: -7.069407604 | G19: 7.284408696
A20: 60 a 64 | B20: 176786 | C20: ='3'!B34 -> 86108 | D20: ='3'!B51 -> 90678 | F20: -5.435500304 | G20: 5.723977987
A21: 65 a 69 | B21: 127696 | C21: ='3'!B35 -> 61609 | D21: ='3'!B52 -> 66087 | F21: -3.889020047 | G21: 4.171690302
A22: 70 a 74 | B22: 92572 | C22: ='3'!B36 -> 44089 | D22: ='3'!B53 -> 48483 | F22: -2.783083719 | G22: 3.06045154
A23: 75 a 79 | B23: 66350 | C23: ='3'!B37 -> 31036 | D23: ='3'!B54 -> 35314 | F23: -1.95912328 | G23: 2.229168692
A24: 80 a 84 | B24: 44212 | C24: ='3'!B38 -> 19633 | D24: ='3'!B55 -> 24579 | F24: -1.239317804 | G24: 1.551530194
A25: 85 y más | B25: 41830 | C25: ='3'!B39 -> 17318 | D25: ='3'!B56 -> 24512 | F25: -1.093185235 | G25: 1.547300871
A28: Al pasar a imprenta y web, se debe pegar como valores para
A29: romper el vinculo con la tabla de datos
I31: Fuente: Cuadro 3.

Sheet 4
A1: CUADRO 4
A2: COSTA RICA: ELECTORADO NATURALIZADO, POR PAÍS DE ORIGEN
A3: SEGÚN SEXO Y GRUPO DE EDAD, AL 31 DE DICIEMBRE 2015
A5: SEXO Y GRUPO DE EDAD | B5: País de origen
B6: Total | C6: Nicaragua | D6: Colombia | E6: El Salvador | F6: Cuba | G6: China | H6: Perú | I6: Panamá | J6: Resto de países
A8: Costa Rica | B8: =SUM(B9:B23) -> 52994 | C8: =SUM(C9:C23) -> 27150 | D8: 6417 | E8: 3500 | F8: 2231 | G8: 1825 | H8: 1627 | I8: 1453 | J8: =SUM(J9:J23) -> 8791
A9: 18 - 19 | B9: =SUM(C9:J9) -> 435 | C9: =C26+C43 -> 156 | D9: =D26+D43 -> 179 | E9: 6 | F9: 18 | G9: 7 | H9: 17 | I9: 3 | J9: 49
A10: 20 - 24 | B10: =SUM(C10:J10) -> 922 | C10: =C27+C44 -> 412 | D10: 280 | E10: 11 | F10: 71 | G10: 17 | H10: 16 | I10: 4 | J10: 111
A11: 25 - 29 | B11: 1767 | C11: 945 | D11: 310 | E11: 30 | F11: 95 | G11: 55 | H11: 55 | I11: 18 | J11: 259
A12: 30 - 34 | B12: 3876 | C12: 2306 | D12: 656 | E12: 69 | F12: 105 | G12: 129 | H12: 120 | I12: 40 | J12: 451
A13: 35 - 39 | B13: 5898 | C13: 3078 | D13: 1040 | E13: 343 | F13: 186 | G13: 219 | H13: 194 | I13: 52 | J13: 786
A14: 40 - 44 | B14: 6661 | C14: 3376 | D14: 933 | E14: 445 | F14: 287 | G14: 239 | H14: 236 | I14: 133 | J14: 1012
A15: 45 - 49 | B15: 6876 | C15: 3493 | D15: 937 | E15: 453 | F15: 301 | G15: 212 | H15: 203 | I15: 197 | J15: 1080
A16: 50 - 54 | B16: 5955 | C16: 2808 | D16: 792 | E16: 439 | F16: 322 | G16: 187 | H16: 207 | I16: 213 | J16: 987
A17: 55 - 59 | B17: 4872 | C17: 2288 | D17: 499 | E17: 458 | F17: 231 | G17: 163 | H17: 197 | I17: 176 | J17: 860
A18: 60 - 64 | B18: 4293 | C18: 1958 | D18: 323 | E18: 463 | F18: 193 | G18: 152 | H18: 156 | I18: 165 | J18: 883
A19: 65 - 69 | B19: 3398 | C19: 1585 | D19: 214 | E19: 314 | F19: 134 | G19: 141 | H19: 110 | I19: 144 | J19: 756
A20: 70 - 74 | B20: 2663 | C20: 1391 | D20: 115 | E20: 214 | F20: 99 | G20: 109 | H20: 54 | I20: 115 | J20: 566
A21: 75 - 79 | B21: 2024 | C21: 1163 | D21: 71 | E21: 127 | F21: 81 | G21: 77 | H21: 38 | I21: 68 | J21: 399
A22: 80 - 84 | B22: 1537 | C22: 954 | D22: 37 | E22: 74 | F22: 42 | G22: 50 | H22: 16 | I22: 65 | J22: 299
A23: 85 y más | B23: 1817 | C23: 1237 | D23: 31 | E23: 54 | F23: 66 | G23: 68 | H23: 8 | I23: 60 | J23: 293
A25: Hombres | B25: =SUM(B26:B40) -> 24006 | C25: =SUM(C26:C40) -> 11415 | D25: =SUM(D26:D40) -> 3017 | E25: 1500 | F25: 1239 | G25: 986 | H25: 879 | I25: 630 | J25: 4340
A26: 18 - 19 | B26: =SUM(C26:J26) -> 230 | C26: 79 | D26: 98 | E26: 3 | F26: 11 | G26: 3 | H26: 6 | I26: 0 | J26: 30
A27: 20 - 24 | B27: =SUM(C27:J27) -> 473 | C27: 197 | D27: 150 | E27: 5 | F27: 50 | G27: 8 | H27: 9 | I27: 0 | J27: 54
A28: 25 - 29 | B28: 722 | C28: 343 | D28: 143 | E28: 10 | F28: 44 | G28: 33 | H28: 24 | I28: 7 | J28: 118
A29: 30 - 34 | B29: 1555 | C29: 827 | D29: 290 | E29: 34 | F29: 44 | G29: 81 | H29: 70 | I29: 11 | J29: 198
A30: 35 - 39 | B30: 2531 | C30: 1246 | D30: 454 | E30: 154 | F30: 90 | G30: 134 | H30: 90 | I30: 23 | J30: 340
A31: 40 - 44 | B31: 2973 | C31: 1422 | D31: 424 | E31: 198 | F31: 146 | G31: 140 | H31: 117 | I31: 61 | J31: 465
A32: 45 - 49 | B32: 3229 | C32: 1601 | D32: 449 | E32: 203 | F32: 180 | G32: 97 | H32: 101 | I32: 88 | J32: 510
A33: 50 - 54 | B33: 2679 | C33: 1154 | D33: 377 | E33: 181 | F33: 192 | G33: 101 | H33: 111 | I33: 95 | J33: 468
A34: 55 - 59 | B34: 2049 | C34: 794 | D34: 233 | E34: 183 | F34: 142 | G34: 86 | H34: 109 | I34: 76 | J34: 426
A35: 60 - 64 | B35: 1898 | C35: 771 | D35: 152 | E35: 171 | F35: 114 | G35: 82 | H35: 92 | I35: 64 | J35: 452
A36: 65 - 69 | B36: 1659 | C36: 705 | D36: 110 | E36: 131 | F36: 83 | G36: 73 | H36: 75 | I36: 56 | J36: 426
A37: 70 - 74 | B37: 1389 | C37: 668 | D37: 69 | E37: 111 | F37: 58 | G37: 59 | H37: 36 | I37: 58 | J37: 330
A38: 75 - 79 | B38: 1008 | C38: 551 | D38: 41 | E38: 65 | F38: 45 | G38: 32 | H38: 25 | I38: 33 | J38: 216
A39: 80 - 84 | B39: 718 | C39: 434 | D39: 15 | E39: 29 | F39: 15 | G39: 30 | H39: 10 | I39: 27 | J39: 158
A40: 85 y más | B40: 893 | C40: 623 | D40: 12 | E40: 22 | F40: 25 | G40: 27 | H40: 4 | I40: 31 | J40: 149
A42: Mujeres | B42: =SUM(B43:B57) -> 28988 | C42: 15735 | D42: 3400 | E42: 2000 | F42: 992 | G42: 839 | H42: 748 | I42: 823 | J42: 4451
A43: 18 - 19 | B43: =SUM(C43:J43) -> 205 | C43: 77 | D43: 81 | E43: 3 | F43: 7 | G43: 4 | H43: 11 | I43: 3 | J43: 19
A44: 20 - 24 | B44: =SUM(C44:J44) -> 449 | C44: 215 | D44: 130 | E44: 6 | F44: 21 | G44: 9 | H44: 7 | I44: 4 | J44: 57
A45: 25 - 29 | B45: 1045 | C45: 602 | D45: 167 | E45: 20 | F45: 51 | G45: 22 | H45: 31 | I45: 11 | J45: 141
A46: 30 - 34 | B46: 2321 | C46: 1479 | D46: 366 | E46: 35 | F46: 61 | G46: 48 | H46: 50 | I46: 29 | J46: 253
A47: 35 - 39 | B47: 3367 | C47: 1832 | D47: 586 | E47: 189 | F47: 96 | G47: 85 | H47: 104 | I47: 29 | J47: 446
A48: 40 - 44 | B48: 3688 | C48: 1954 | D48: 509 | E48: 247 | F48: 141 | G48: 99 | H48: 119 | I48: 72 | J48: 547
A49: 45 - 49 | B49: 3647 | C49: 1892 | D49: 488 | E49: 250 | F49: 121 | G49: 115 | H49: 102 | I49: 109 | J49: 570
A50: 50 - 54 | B50: 3276 | C50: 1654 | D50: 415 | E50: 258 | F50: 130 | G50: 86 | H50: 96 | I50: 118 | J50: 519
A51: 55 - 59 | B51: 2823 | C51: 1494 | D51: 266 | E51: 275 | F51: 89 | G51: 77 | H51: 88 | I51: 100 | J51: 434
A52: 60 - 64 | B52: 2395 | C52: 1187 | D52: 171 | E52: 292 | F52: 79 | G52: 70 | H52: 64 | I52: 101 | J52: 431
A53: 65 - 69 | B53: 1739 | C53: 880 | D53: 104 | E53: 183 | F53: 51 | G53: 68 | H53: 35 | I53: 88 | J53: 330
A54: 70 - 74 | B54: 1274 | C54: 723 | D54: 46 | E54: 103 | F54: 41 | G54: 50 | H54: 18 | I54: 57 | J54: 236
A55: 75 - 79 | B55: 1016 | C55: 612 | D55: 30 | E55: 62 | F55: 36 | G55: 45 | H55: 13 | I55: 35 | J55: 183
A56: 80 - 84 | B56: 819 | C56: 520 | D56: 22 | E56: 45 | F56: 27 | G56: 20 | H56: 6 | I56: 38 | J56: 141
A57: 85 y más | B57: 924 | C57: 614 | D57: 19 | E57: 32 | F57: 41 | G57: 41 | H57: 4 | I57: 29 | J57: 144
A60: Fuente: Sección Padrón Electoral del Tribunal Supremo de Elecciones.

Sheet G2
A2: Costa Rica | B2: ='3'!B7 -> 3178364 | E2: GRÁFICO 2
A3: Resto de países | B3: ='4'!J8 -> 8791 | C3: =+B3/$B$11*100 -> 16.58867042 | E3: COSTA RICA: PORCENTAJE DEL ELECTORADO NATURALIZADO
A4: Panamá | B4: ='4'!I8 -> 1453 | C4: 2.741819829 | E4: POR PAÍS DE ORIGEN, AL 31 DE DICIEMBRE 2015
A5: Perú | B5: ='4'!H8 -> 1627 | C5: 3.070158886
A6: China | B6: ='4'!G8 -> 1825 | C6: 3.443786089
A7: Cuba | B7: ='4'!F8 -> 2231 | C7: 4.209910556
A8: El Salvador | B8: ='4'!E8 -> 3500 | C8: 6.604521267
A9: Colombia | B9: ='4'!D8 -> 6417 | C9: 12.10891799
A10: Nicaragua | B10: ='4'!C8 -> 27150 | C10: =+B10/$B$11*100 -> 51.23221497
B11: =SUM(B3:B10) -> 52994
A13: Los datos se copian del cuadro respectivo
A14: ya que el total de cada país puede variar | C14: =SUM(D14:R14) -> 0
A15: y por tanto la posición dentros del gráfico
C16: =SUM(D16:R16) -> 0
C18: =SUM(D18:R18) -> 0
C20: =SUM(D20:R20) -> 0
C22: =SUM(D22:R22) -> 0
C24: =SUM(D24:R24) -> 0
C26: =SUM(D26:R26) -> 0
C28: =SUM(D28:R28) -> 0
C30: =SUM(D30:R30) -> 0
E31: Fuente: Cuadro 4.

Sheet 5
A1: CUADRO 5
A2: COSTA RICA: MOVIMIENTOS AL PADRÓN NACIONAL ELECTORAL
A3: POR TIPO DE MOVIMIENTO, SEGÚN MES
A4: AL 31 DE DICIEMBRE 2015
A6: Mes | B6: Padrón Nacional Electoral anterior | D6: Tipo de movimiento | O6: Padrón Nacional Electoral actual 2/
D7: Inclusiones | I7: Exclusiones
D8: Cédulas Primera vez1/ | F8: Cédulas renovadas | I8: Defunción | K8: Cédulas vencidas | M8: Otras
A10: Enero | B10: 3137855 | D10: 8456 | F10: 5348 | I10: 2201 | K10: 5722 | M10: 11 | O10: =B10+D10+F10-I10-K10-M10 -> 3143725
A11: Febrero | B11: =O10 -> 3143725 | D11: 6132 | F11: 4173 | I11: 1428 | K11: 1560 | M11: 21 | O11: =B11+D11+F11-I11-K11-M11 -> 3151021
A12: Marzo | B12: =O11 -> 3151021 | D12: 5834 | F12: 2616 | I12: 1420 | K12: 0 | M12: 20 | O12: 3158031
A13: Abril | B13: 3158031 | D13: 6542 | F13: 1957 | I13: 1164 | K13: 0 | M13: 2 | O13: 3165364
A14: Mayo | B14: 3165364 | D14: 6199 | F14: 1516 | I14: 1227 | K14: 0 | M14: 30 | O14: 3171822
A15: Junio | B15: 3171822 | D15: 7093 | F15: 1259 | I15: 2316 | K15: 0 | M15: 8 | O15: 3177850
A16: Julio | B16: 3177850 | D16: 7710 | F16: 1229 | I16: 1323 | K16: 0 | M16: 30 | O16: 3185436
A17: Agosto | B17: 3185436 | D17: 6854 | F17: 1063 | I17: 1613 | K17: 0 | M17: 28 | O17: 3191712
A18: Setiembre | B18: 3191712 | D18: 7899 | F18: 838 | I18: 1833 | K18: 0 | M18: 19 | O18: 3198597
A19: Octubre 2/ | B19: 3198597 | D19: 3324 | F19: 259 | I19: 1754 | K19: 0 | M19: 16 | O19: 3200410
A20: Noviembre | B20: 3200410 | D20: 0 | F20: 0 | I20: 0 | K20: 0 | M20: 0 | O20: 3200410
A21: Diciembre | B21: 3200410 | D21: 0 | F21: 0 | I21: 0 | K21: 0 | M21: 0 | O21: 3200410
A24: 1/ Incluye nuevos electores, inclusión condicional de nuevos electores y otras inclusiones.
A25: 2/ Incluye al electorado inscrito en Costa Rica y en el extranjero.
A27: Fuente: Sección Padrón Electoral del Tribunal Supremo de Elecciones.

Sheet 6
A1: CUADRO 6
A2: COSTA RICA: SOLICITUDES DE CÉDULA RECIBIDAS, POR CLASE DE SOLICITUD
A3: SEGÚN MES, AL 31 DE DICIEMBRE 2015
A4: (Absoluto y Porcentaje)
A6: Mes | B6: Clase de solicitud
B7: Absoluto | F7: Porcentaje
B8: Total | C8: Primera vez | D8: Duplicado | E8: Traslado | F8: Total | G8: Primera vez | H8: Duplicado | I8: Traslado
A10: TOTAL | B10: =SUM(C10:E10) -> 653675 | C10: =SUM(C12:C23) -> 81989 | D10: =SUM(D12:D23) -> 566609 | E10: =SUM(E12:E23) -> 5077 | F10: =SUM(G10:I10) -> 100 | G10: =C10/$B10*100 -> 12.54277737 | H10: =D10/$B10*100 -> 86.68053696 | I10: =E10/$B10*100 -> 0.7766856618
A12: Enero | B12: =SUM(C12:E12) -> 64062 | C12: 8499 | D12: 55495 | E12: 68 | F12: =SUM(G12:I12) -> 100 | G12: =C12/$B12*100 -> 13.26683525 | H12: =D12/$B12*100 -> 86.62701758 | I12: =E12/$B12*100 -> 0.1061471699
A13: Febrero | B13: =SUM(C13:E13) -> 52683 | C13: 5737 | D13: 46848 | E13: 98 | F13: 100 | G13: =C13/$B13*100 -> 10.8896608 | H13: 88.92432094 | I13: 0.1860182602
A14: Marzo | B14: 49544 | C14: 5678 | D14: 43797 | E14: 69 | F14: 100 | G14: 11.46051994 | H14: 88.40020991 | I14: 0.1392701437
A15: Abril | B15: 52166 | C15: 6693 | D15: 45410 | E15: 63 | F15: 100 | G15: 12.83019591 | H15: 87.04903577 | I15: 0.1207683165
A16: Mayo | B16: 50927 | C16: 6266 | D16: 44584 | E16: 77 | F16: 100 | G16: 12.30388595 | H16: 87.54491723 | I16: 0.1511968111
A17: Junio | B17: 55160 | C17: 7046 | D17: 47973 | E17: 141 | F17: 100 | G17: 12.77374909 | H17: 86.97063089 | I17: 0.2556200145
A18: Julio | B18: 59183 | C18: 8009 | D18: 50510 | E18: 664 | F18: 100 | G18: 13.53260227 | H18: 85.34545393 | I18: 1.121943801
A19: Agosto | B19: 55326 | C19: 7222 | D19: 47717 | E19: 387 | F19: 100 | G19: 13.05353722 | H19: 86.24697249 | I19: 0.6994902939
A20: Setiembre | B20: 59463 | C20: 8278 | D20: 49395 | E20: 1790 | F20: =SUM(G20:I20) -> 100 | G20: 13.92126196 | H20: 83.06846274 | I20: 3.010275297
A21: Octubre | B21: 60161 | C21: 8096 | D21: 50361 | E21: 1704 | F21: 100 | G21: 13.45722312 | H21: 83.71037715 | I21: 2.832399727
A22: Noviembre | B22: 51286 | C22: 5909 | D22: 45366 | E22: 11 | F22: 100 | G22: 11.52166283 | H22: 88.45688882 | I22: 0.02144834848
A23: Diciembre | B23: 43714 | C23: 4556 | D23: 39153 | E23: 5 | F23: 100 | G23: 10.42229034 | H23: 89.56627167 | I23: =E23/$B23*100 -> 0.01143798325
A26: Fuente: Sección Solicitudes Cedulares y Coordinación de Servicios Regionales del Tribunal Supremo de Elecciones.

Sheet G3
A2: GRÁFICO 3
A3: COSTA RICA: PORCENTAJE DE SOLICITUDES DE CÉDULA RECIBIDAS | J3: SOLICITUDES CEDULARES RECIBIDAS
A4: POR CLASE DE SOLICITUD, AL 31 DE DICIEMBRE 2015 | J4: TOTAL | K4: =SUM(K5:K7) -> 653675
J5: Duplicado | K5: 566609 | L5: =+K5/$K$4*100 -> 86.68053696
J6: Primera vez | K6: 81989 | L6: =+K6/$K$4*100 -> 12.54277737
E7: Sin lugar | J7: Traslado | K7: 5077 | L7: =+K7/$K$4*100 -> 0.7766856618
A30: Fuente: Cuadro 6.

Sheet 7
A1: CUADRO 7
A2: COSTA RICA: SOLICITUDES DE CÉDULA RECIBIDAS, POR CLASE DE SOLICITUD
A3: SEGÚN PROVINCIA, AL 31 DE DICIEMBRE 2015
A4: (Absoluto y Porcentaje)
A6: Provincia | B6: Clase de solicitud
B7: Absoluto | F7: Porcentaje
B8: Total | C8: Primera vez | D8: Duplicado | E8: Traslado | F8: Total | G8: Primera vez | H8: Duplicado | I8: Traslado
A10: Costa Rica | B10: =SUM(C10:E10) -> 653675 | C10: =SUM(C12:C18) -> 81989 | D10: =SUM(D12:D18) -> 566609 | E10: 5077 | F10: 100 | G10: 100 | H10: 100 | I10: 100
A12: San José | B12: =SUM(C12:E12) -> 269999 | C12: 31427 | D12: 236271 | E12: 2301 | F12: =(B12/B$10*100) -> 41.30477684 | G12: =(C12/C$10*100) -> 38.33075169 | H12: =D12/D$10*100 -> 41.69912585 | I12: =E12/E$10*100 -> 45.32204058
A13: Alajuela | B13: 106870 | C13: 15468 | D13: 90548 | E13: 854 | F13: =(B13/B$10*100) -> 16.34910315 | G13: 18.86594543 | H13: =D13/D$10*100 -> 15.98068509 | I13: 16.82095726
A14: Cartago | B14: 50363 | C14: 7573 | D14: 42351 | E14: 439 | F14: 7.704593261 | G14: 9.23660491 | H14: 7.474466519 | I14: 8.646838684
A15: Heredia | B15: 44317 | C15: 6031 | D15: 37757 | E15: 529 | F15: 6.779668796 | G15: 7.355864811 | H15: 6.663678127 | I15: =E15/E$10*100 -> 10.4195391
A16: Guanacaste | B16: 49224 | C16: 6205 | D16: 42652 | E16: 367 | F16: 7.53034765 | G16: 7.568088402 | H16: 7.527589572 | I16: 7.228678353
A17: Puntarenas | B17: 64061 | C17: 7544 | D17: 56108 | E17: 409 | F17: 9.800130034 | G17: 9.201234312 | H17: 9.902419482 | I17: 8.055938546
A18: Limón | B18: 68841 | C18: 7741 | D18: 60922 | E18: 178 | F18: 10.53138027 | G18: 9.441510447 | H18: 10.75203535 | I18: 3.506007485
A21: Fuente: Sección Solicitudes Cedulares y Coordinación de Servicios Regionales del Tribunal Supremo de Elecciones.

Sheet G4
A2: GRÁFICO 4
A3: COSTA RICA: SOLICITUDES DE CÉDULA RECIBIDAS, POR CLASE DE SOLICITUD | L3: PV | M3: DUP | N3: TRASL
A4: SEGÚN PROVINCIA, AL 31 DE DICIEMBRE 2015 | K4: San José | L4: 31427 | M4: 236271 | N4: 2301
K5: Alajuela | L5: 15468 | M5: 90548 | N5: 854
K6: Limón | L6: 7741 | M6: 60922 | N6: 178
E7: Sin lugar | K7: Puntarenas | L7: 7544 | M7: 56108 | N7: 409
K8: Cartago | L8: 7573 | M8: 42351 | N8: 439
K9: Guanacaste | L9: 6205 | M9: 42652 | N9: 367
K10: Heredia | L10: 6031 | M10: 37757 | N10: 529 | O10: =SUM(L11:N11) -> 653675
K11: Total | L11: =SUM(L4:L10) -> 81989 | M11: =SUM(M4:M10) -> 566609 | N11: =SUM(N4:N10) -> 5077
L14: Duplicado | M14: Primera vez | N14: Traslado
K15: =K10 -> Heredia | L15: =M10/1000 -> 37.757 | M15: =L10/1000 -> 6.031 | N15: =N10/1000 -> 0.529
K16: =K9 -> Guanacaste | L16: =M9/1000 -> 42.652 | M16: =L9/1000 -> 6.205 | N16: =N9/1000 -> 0.367
K17: =K8 -> Cartago | L17: =M8/1000 -> 42.351 | M17: =L8/1000 -> 7.573 | N17: =N8/1000 -> 0.439
K18: Puntarenas | L18: =M7/1000 -> 56.108 | M18: =L7/1000 -> 7.544 | N18: =N7/1000 -> 0.409
K19: Limón | L19: =M6/1000 -> 60.922 | M19: =L6/1000 -> 7.741 | N19: =N6/1000 -> 0.178
K20: Alajuela | L20: =M5/1000 -> 90.548 | M20: =L5/1000 -> 15.468 | N20: =N5/1000 -> 0.854
K21: San José | L21: =M4/1000 -> 236.271 | M21: =L4/1000 -> 31.427 | N21: =N4/1000 -> 2.301
K22: Total | L22: =SUM(L15:L21) -> 566.609 | M22: =SUM(M15:M21) -> 81.989 | N22: =SUM(N15:N21) -> 5.077
A29: Fuente: Cuadro 7.

Sheet 8
A1: CUADRO 8
A2: COSTA RICA: SOLICITUDES DE CÉDULA RECIBIDAS
A3: POR FUENTE DE INGRESO, SEGÚN MES
A4: AL 31 DE DICIEMBRE 2015
A6: Mes | B6: Fuente de ingreso
B7: Total | C7: Oficina central | D7: Oficinas regionales 1/ | E7: Consulados | F7: Cedulación a domicilio | G7: Cedulación ambulante
A9: TOTAL | B9: =SUM(B11:B22) -> 653675 | C9: 227456 | D9: 404165 | E9: 4053 | F9: 4625 | G9: 13376
A11: Enero | B11: =SUM(C11:G11) -> 64062 | C11: 22982 | D11: 40484 | E11: 308 | F11: 288 | G11: 0
A12: Febrero | B12: =SUM(C12:G12) -> 52683 | C12: 18904 | D12: 32326 | E12: 424 | F12: 280 | G12: 749
A13: Marzo | B13: 49544 | C13: 17624 | D13: 30206 | E13: 306 | F13: 544 | G13: 864
A14: Abril | B14: 52166 | C14: 18000 | D14: 32954 | E14: 362 | F14: 292 | G14: 558
A15: Mayo | B15: 50927 | C15: 17498 | D15: 31898 | E15: 406 | F15: 322 | G15: 803
A16: Junio | B16: 55160 | C16: 18926 | D16: 34518 | E16: 374 | F16: 407 | G16: 935
A17: Julio | B17: 59183 | C17: 20650 | D17: 36370 | E17: 301 | F17: 279 | G17: 1583
A18: Agosto | B18: 55326 | C18: 18642 | D18: 31906 | E18: 332 | F18: 268 | G18: 4178
A19: Setiembre | B19: 59463 | C19: 19251 | D19: 35418 | E19: 338 | F19: 1107 | G19: 3349
A20: Octubre | B20: 60161 | C20: 20273 | D20: 38884 | E20: 366 | F20: 285 | G20: 353
A21: Noviembre | B21: 51286 | C21: 18241 | D21: 32375 | E21: 318 | F21: 348 | G21: 4
A22: Diciembre | B22: 43714 | C22: 16465 | D22: 26826 | E22: 218 | F22: 205 | G22: 0
A25: 1/ El Tribunal Supremo de Elecciones cuenta con 32 Oficinas Regionales.
A27: Fuente: Sección Solicitudes Cedulares y Coordinación de Servicios Regionales del Tribunal Supremo de Elecciones.

Sheet G5
A2: GRÁFICO 5
A3: COSTA RICA: PORCENTAJE DE SOLICITUDES DE CÉDULA RECIBIDAS | J3: SOLICITUDES CEDULARES RECIBIDAS
A4: POR FUENTE DE INGRESO, AL 31 DE DICIEMBRE 2015 | J4: TOTAL | K4: =SUM(K5:K8) -> 653675
J5: Oficinas Regionales | K5: 404165 | L5: =+K5/$K$4*100 -> 61.82965541
J6: Oficina Central | K6: 227456 | L6: =+K6/$K$4*100 -> 34.79649673
E7: Sin lugar | J7: Cedulación Ambulante | K7: 13376 | L7: =+K7/$K$4*100 -> 2.04627682
J8: Consulados y domicilio | K8: 8678 | L8: =+K8/$K$4*100 -> 1.327571041
J11: Chequear que el orden sea de mayor a menor
A29: Fuente: Cuadro 8.

Sheet 9
A2: CUADRO 9
A3: SOLICITUDES DE CÉDULA RECIBIDAS EN LAS OFICINAS REGIONALES
A4: POR MES, SEGÚN OFICINA REGIONAL
A5: AL 31 DE DICIEMBRE 2015
A7: Oficina Regional | B7: Total | C7: Enero | D7: Febrero | E7: Marzo | F7: Abril | G7: Mayo | H7: Junio | I7: Julio | J7: Agosto | K7: Setiembre | L7: Octubre | M7: Noviembre | N7: Diciembre
A9: TOTAL | B9: =SUM(B11:B42) -> 404165 | C9: =SUM(C11:C42) -> 40484 | D9: =SUM(D11:D42) -> 32326 | E9: 30206 | F9: 32954 | G9: 31898 | H9: 34518 | I9: 36370 | J9: 31906 | K9: 35418 | L9: 38884 | M9: 32375 | N9: 26826
A11: Alajuela | B11: =SUM(C11:N11) -> 35942 | C11: 3599 | D11: 2846 | E11: 2767 | F11: 2907 | G11: 2841 | H11: 3045 | I11: 3280 | J11: 2928 | K11: 3062 | L11: 3360 | M11: 2900 | N11: 2407
A12: Atenas | B12: 3321 | C12: 339 | D12: 217 | E12: 237 | F12: 254 | G12: 253 | H12: 284 | I12: 267 | J12: 274 | K12: 317 | L12: 354 | M12: 278 | N12: 247
A13: Buenos Aires | B13: 4945 | C13: 478 | D13: 427 | E13: 420 | F13: 386 | G13: 400 | H13: 436 | I13: 410 | J13: 390 | K13: 382 | L13: 448 | M13: 414 | N13: 354
A14: Cañas | B14: 9341 | C14: 913 | D14: 764 | E14: 746 | F14: 734 | G14: 706 | H14: 844 | I14: 869 | J14: 700 | K14: 808 | L14: 877 | M14: 778 | N14: 602
A15: Cartago | B15: =SUM(C15:N15) -> 37614 | C15: 3850 | D15: 3254 | E15: 2967 | F15: 3113 | G15: 2909 | H15: 3092 | I15: 3313 | J15: 2974 | K15: 3290 | L15: 3582 | M15: 3030 | N15: 2240
A16: Corredores | B16: 9082 | C16: 846 | D16: 853 | E16: 701 | F16: 757 | G16: 681 | H16: 804 | I16: 768 | J16: 755 | K16: 724 | L16: 835 | M16: 757 | N16: 601
A17: Coto Brus | B17: 5340 | C17: 528 | D17: 439 | E17: 403 | F17: 445 | G17: 457 | H17: 470 | I17: 448 | J17: 491 | K17: 489 | L17: 471 | M17: 369 | N17: 330
A18: Golfito | B18: 4644 | C18: 532 | D18: 0 | E18: 439 | F18: 427 | G18: 398 | H18: 399 | I18: 471 | J18: 372 | K18: 389 | L18: 446 | M18: 437 | N18: 334
A19: Grecia | B19: 12731 | C19: 1388 | D19: 1076 | E19: 960 | F19: 1013 | G19: 938 | H19: 977 | I19: 1120 | J19: 1016 | K19: 1148 | L19: 1223 | M19: 993 | N19: 879
A20: Guatuso | B20: 2504 | C20: 228 | D20: 193 | E20: 156 | F20: 179 | G20: 166 | H20: 215 | I20: 249 | J20: 192 | K20: 263 | L20: 283 | M20: 215 | N20: 165
A21: Heredia | B21: 35790 | C21: 4047 | D21: 2399 | E21: 1294 | F21: 3157 | G21: 3003 | H21: 3239 | I21: 3501 | J21: 3279 | K21: 3553 | L21: 3660 | M21: 2133 | N21: 2525
A22: Jicaral | B22: 2354 | C22: 190 | D22: 204 | E22: 164 | F22: 165 | G22: 212 | H22: 202 | I22: 193 | J22: 198 | K22: 216 | L22: 229 | M22: 184 | N22: 197
A23: Liberia | B23: 19339 | C23: 1893 | D23: 1589 | E23: 1589 | F23: 1578 | G23: 1534 | H23: 1665 | I23: 1750 | J23: 1561 | K23: 1641 | L23: 1761 | M23: 1571 | N23: 1207
A24: Limón | B24: 22411 | C24: 2131 | D24: 1899 | E24: 1756 | F24: 1864 | G24: 1789 | H24: 1953 | I24: 1970 | J24: 1730 | K24: 1809 | L24: 2087 | M24: 1886 | N24: 1537
A25: Los Chiles | B25: 2442 | C25: 255 | D25: 183 | E25: 201 | F25: 194 | G25: 207 | H25: 212 | I25: 208 | J25: 183 | K25: 218 | L25: 237 | M25: 195 | N25: 149
A26: Nicoya | B26: 9079 | C26: 960 | D26: 156 | E26: 796 | F26: 734 | G26: 764 | H26: 927 | I26: 848 | J26: 853 | K26: 829 | L26: 848 | M26: 737 | N26: 627
A27: Orotina | B27: 6659 | C27: 598 | D27: 521 | E27: 533 | F27: 516 | G27: 558 | H27: 527 | I27: 586 | J27: 559 | K27: 627 | L27: 729 | M27: 502 | N27: 403
A28: Osa | B28: 4233 | C28: 412 | D28: 341 | E28: 340 | F28: 340 | G28: 323 | H28: 371 | I28: 361 | J28: 307 | K28: 373 | L28: 428 | M28: 363 | N28: 274
A29: Pérez Zeledón | B29: 21602 | C29: 2240 | D29: 1817 | E29: 1682 | F29: 1703 | G29: 1648 | H29: 1884 | I29: 1812 | J29: 1753 | K29: 1931 | L29: 2051 | M29: 1742 | N29: 1339
A30: Pococí | B30: 27557 | C30: 2531 | D30: 2289 | E30: 2179 | F30: 2232 | G30: 2183 | H30: 2402 | I30: 2565 | J30: 2357 | K30: 2224 | L30: 2502 | M30: 2344 | N30: 1749
A31: Puntarenas | B31: 23401 | C31: 2277 | D31: 2021 | E31: 1810 | F31: 1837 | G31: 1755 | H31: 2034 | I31: 2096 | J31: 1803 | K31: 1903 | L31: 2273 | M31: 1970 | N31: 1622
A32: Puriscal | B32: 6564 | C32: 645 | D32: 573 | E32: 500 | F32: 463 | G32: 531 | H32: 527 | I32: 563 | J32: 524 | K32: 546 | L32: 723 | M32: 540 | N32: 429
A33: Quepos | B33: =SUM(C33:N33) -> 7468 | C33: 724 | D33: 594 | E33: 548 | F33: 631 | G33: 567 | H33: 633 | I33: 622 | J33: 654 | K33: 684 | L33: 713 | M33: 587 | N33: 511
A34: San Carlos | B34: 19861 | C34: 2055 | D34: 1762 | E34: 1696 | F34: 1665 | G34: 1738 | H34: 1760 | I34: 1831 | J34: 342 | K34: 1878 | L34: 2080 | M34: 1684 | N34: 1370
A35: San Ramón | B35: 16173 | C35: 1611 | D35: 1375 | E35: 1252 | F35: 1216 | G35: 1263 | H35: 1369 | I35: 1487 | J35: 1181 | K35: 1430 | L35: 1568 | M35: 1271 | N35: 1150
A36: Santa Cruz | B36: 9782 | C36: 821 | D36: 775 | E36: 534 | F36: 939 | G36: 764 | H36: 613 | I36: 999 | J36: 930 | K36: 915 | L36: 976 | M36: 848 | N36: 668
A37: Sarapiquí | B37: 7116 | C37: 677 | D37: 590 | E37: 613 | F37: 578 | G37: 537 | H37: 576 | I37: 624 | J37: 600 | K37: 653 | L37: 645 | M37: 621 | N37: 402
A38: Siquirres | B38: 11458 | C38: 1214 | D38: 1018 | E38: 870 | F38: 902 | G38: 842 | H38: 941 | I38: 1000 | J38: 984 | K38: 917 | L38: 998 | M38: 964 | N38: 808
A39: Talamanca | B39: 5177 | C39: 485 | D39: 443 | E39: 386 | F39: 365 | G39: 380 | H39: 437 | I39: 429 | J39: 402 | K39: 445 | L39: 553 | M39: 490 | N39: 362
A40: Tarrazú | B40: 4117 | C40: 376 | D40: 337 | E40: 328 | F40: 378 | G40: 326 | H40: 363 | I40: 377 | J40: 323 | K40: 352 | L40: 395 | M40: 289 | N40: 273
A41: Turrialba | B41: 10560 | C41: 1107 | D41: 910 | E41: 904 | F41: 859 | G41: 755 | H41: 871 | I41: 890 | J41: 836 | K41: 894 | L41: 988 | M41: 843 | N41: 703
A42: Upala | B42: 5558 | C42: 534 | D42: 461 | E42: 435 | F42: 423 | G42: 470 | H42: 446 | I42: 463 | J42: 455 | K42: 508 | L42: 561 | M42: 440 | N42: 362
A45: FUENTE: Coordinación de Servicios Regionales del Tribunal Supremo de Elecciones.

Sheet 10
A1: CUADRO 10
A2: COSTA RICA: PRODUCTOS Y SERVICIOS BRINDADOS, POR TIPO DE SERVICIO
A3: SEGÚN MES, AL 31 DE DICIEMBRE 2015
A5: Mes | B5: Productos y Sevicios
B6: Cédulas de identidad impresas | C6: Tarjetas identidad de menores impresas | D6: Certificaciones y constancias expedidas | E6: Asambleas de partidos políticos fiscalizadas | F6: Atención de consultas en materia electoral 1/ | G6: Movimientos y actualizaciones al Padrón Electoral 2/
A8: Total | B8: =SUM(B10:B21) -> 654750 | C8: 146505 | D8: 2645367 | E8: 1840 | F8: 32483 | G8: 560092
A10: Enero | B10: 61298 | C10: 15231 | D10: 236027 | E10: 59 | F10: 1524 | G10: 72707
A11: Febrero | B11: 55529 | C11: 16929 | D11: 288535 | E11: 86 | F11: 1339 | G11: 58697
A12: Marzo | B12: 52036 | C12: 8761 | D12: 253479 | E12: 49 | F12: 1297 | G12: 54106
A13: Abril | B13: 51400 | C13: 9259 | D13: 210983 | E13: 116 | F13: 1455 | G13: 58218
A14: Mayo | B14: 51362 | C14: 9173 | D14: 204166 | E14: 69 | F14: 1474 | G14: 53345
A15: Junio | B15: 54574 | C15: 9884 | D15: 211523 | E15: 104 | F15: 1363 | G15: 58119
A16: Julio | B16: 56872 | C16: 14323 | D16: 210822 | E16: 248 | F16: 1564 | G16: 60212
A17: Agosto | B17: 56333 | C17: 10282 | D17: 229122 | E17: 521 | F17: 1771 | G17: 60490
A18: Setiembre | B18: 56425 | C18: 10316 | D18: 204771 | E18: 452 | F18: 6229 | G18: 61737
A19: Octubre | B19: 59850 | C19: 14527 | D19: 215880 | E19: 128 | F19: 5756 | G19: 22461
A20: Noviembre | B20: 52422 | C20: 14821 | D20: 222345 | E20: 0 | F20: 1095 | G20: 0
A21: Diciembre | B21: 46649 | C21: 12999 | D21: 157714 | E21: 8 | F21: 7616 | G21: 0
A24: 1/ De Partidos Políticos, Municipalidades, Asamblea Legislativa y otros.
A25: 2/ El Padrón Nacional Electoral se cerró en octubre 2014 debido a las elecciones municipales de febrero 2015.
A27: Fuente: Oficinas del Tribunal Supremo de Elecciones.

Sheet 11
A2: CUADRO 11
A3: COSTA RICA: CERTIFICACIONES, CONSTANCIAS Y TARJETAS DE IDENTIDAD DE MENORES EXPEDIDAS
A4: SEGÚN MES, AL 31 DE DICIEMBRE 2015
A6: Certificaciones, constancias y TIM | B6: Total | C6: Enero | D6: Febrero | E6: Marzo | F6: Abril | G6: Mayo | H6: Junio | I6: Julio | J6: Agosto | K6: Setiembre | L6: Octubre | M6: Noviembre | N6: Diciembre
A8: Certificaciones y constancias expedidas | B8: =SUM(C8:N8) -> 2645367 | C8: =C9+C12 -> 236027 | D8: =D9+D12 -> 288535 | E8: =E9+E12 -> 253479 | F8: 210983 | G8: 204166 | H8: 211523 | I8: 210822 | J8: 229122 | K8: 204771 | L8: 215880 | M8: =M9+M12 -> 222345 | N8: 157714
A9: Oficinas centrales | B9: =SUM(B10:B11) -> 873084 | C9: =SUM(C10:C11) -> 86425 | D9: =SUM(D10:D11) -> 83527 | E9: 75362 | F9: 67622 | G9: 69500 | H9: 74627 | I9: 78918 | J9: 81690 | K9: 72072 | L9: 70211 | M9: 59652 | N9: 53478
A10: Certificaciones | B10: =SUM(C10:N10) -> 872756 | C10: 86382 | D10: 83473 | E10: 75307 | F10: 67622 | G10: 69500 | H10: 74619 | I10: 78844 | J10: 81690 | K10: 72072 | L10: 70117 | M10: 59652 | N10: 53478
A11: Constancias | B11: =SUM(C11:N11) -> 328 | C11: 43 | D11: 54 | E11: 55 | F11: 0 | G11: 0 | H11: 8 | I11: 74 | J11: 0 | K11: 0 | L11: 94 | M11: 0 | N11: 0
A12: Oficinas regionales | B12: =SUM(B13:B14) -> 1772283 | C12: =SUM(C13:C14) -> 149602 | D12: =SUM(D13:D14) -> 205008 | E12: 178117 | F12: 143361 | G12: 134666 | H12: 136896 | I12: 131904 | J12: 147432 | K12: 132699 | L12: 145669 | M12: =SUM(M13:M14) -> 162693 | N12: 104236
A13: Certificaciones | B13: =SUM(C13:N13) -> 1612221 | C13: 136802 | D13: 181536 | E13: 160317 | F13: 130756 | G13: 124151 | H13: 126051 | I13: 123386 | J13: 134350 | K13: 121893 | L13: 132979 | M13: 143367 | N13: 96633
A14: Constancias | B14: =SUM(C14:N14) -> 160062 | C14: 12800 | D14: 23472 | E14: 17800 | F14: 12605 | G14: 10515 | H14: 10845 | I14: 8518 | J14: 13082 | K14: 10806 | L14: 12690 | M14: 19326 | N14: 7603
B15: =SUM(C15:D15) -> 0
A16: TIM expedidas | B16: =SUM(C16:N16) -> 146505 | C16: =C17+C20 -> 15231 | D16: =D17+D20 -> 16929 | E16: =E17+E20 -> 8761 | F16: 9259 | G16: 9173 | H16: 9884 | I16: 14323 | J16: 10282 | K16: 10316 | L16: 14527 | M16: 14821 | N16: 12999
A17: Departamento Civil | B17: =SUM(C17:N17) -> 41244 | C17: =SUM(C18:C19) -> 4636 | D17: =SUM(D18:D19) -> 4200 | E17: 2417 | F17: 2652 | G17: 2412 | H17: 2694 | I17: 4490 | J17: 2821 | K17: 3143 | L17: 4207 | M17: 4077 | N17: 3495
A18: Emitidas por primera vez | B18: =SUM(C18:N18) -> 20042 | C18: 2089 | D18: 1679 | E18: 1067 | F18: 1332 | G18: 1167 | H18: 1289 | I18: 2384 | J18: 1390 | K18: 1653 | L18: 2481 | M18: 1955 | N18: 1556
A19: Duplicadas | B19: =SUM(C19:N19) -> 21202 | C19: 2547 | D19: 2521 | E19: 1350 | F19: 1320 | G19: 1245 | H19: 1405 | I19: 2106 | J19: 1431 | K19: 1490 | L19: 1726 | M19: 2122 | N19: 1939
A20: Oficinas regionales | B20: =SUM(B21:B22) -> 105261 | C20: =SUM(C21:C22) -> 10595 | D20: =SUM(D21:D22) -> 12729 | E20: =SUM(E21:E22) -> 6344 | F20: 6607 | G20: 6761 | H20: 7190 | I20: 9833 | J20: 7461 | K20: 7173 | L20: 10320 | M20: 10744 | N20: 9504
A21: Emitidas por primera vez | B21: =SUM(C21:N21) -> 53806 | C21: 5116 | D21: 5277 | E21: 3117 | F21: 3326 | G21: 3331 | H21: 3681 | I21: 4846 | J21: 3854 | K21: 4064 | L21: 6422 | M21: 5925 | N21: 4847
A22: Duplicadas | B22: =SUM(C22:N22) -> 51455 | C22: 5479 | D22: 7452 | E22: 3227 | F22: 3281 | G22: 3430 | H22: 3509 | I22: 4987 | J22: 3607 | K22: 3109 | L22: 3898 | M22: 4819 | N22: 4657
B23: =SUM(C23:D23) -> 0
A26: Fuente: Informe mensual de labores del Departamento Civil, Departamento Electoral y Coordinación de Servicios Regionales del Tribunal Supremo de Elecciones.

Sheet 12
A1: CUADRO 12
A2: COSTA RICA: INSCRIPCIONES CIVILES POR MES, SEGÚN CLASE DE INSCRIPCIÓN
A3: AL 31 DE DICIEMBRE 2015
A5: Clase de inscripción 1/ | B5: Total | C5: Mes
C6: Enero | D6: Febrero | E6: Marzo | F6: Abril | G6: Mayo | H6: Junio | I6: Julio | J6: Agosto | K6: Setiembre | L6: Octubre | M6: Noviembre | N6: Diciembre
A8: Nacimientos | B8: =SUM(C8:N8) -> 77037 | C8: 6178 | D8: 6807 | E8: 5064 | F8: 6119 | G8: 6882 | H8: 6341 | I8: 6552 | J8: 6208 | K8: 6509 | L8: 7410 | M8: 6787 | N8: 6180
A9: Matrimonios: | B9: =SUM(B10:B12) -> 29625 | C9: =SUM(C10:C12) -> 3602 | D9: 3540 | E9: 2445 | F9: 2166 | G9: 2609 | H9: 1823 | I9: 2063 | J9: 2295 | K9: 2047 | L9: 2008 | M9: 1630 | N9: 3397
A10: Católicos | B10: =SUM(C10:N10) -> 7579 | C10: 809 | D10: 1260 | E10: 701 | F10: 630 | G10: 686 | H10: 408 | I10: 492 | J10: 578 | K10: 439 | L10: 501 | M10: 276 | N10: 799
A11: Civiles | B11: =SUM(C11:N11) -> 21232 | C11: 2678 | D11: 2248 | E11: 1705 | F11: 1499 | G11: 1878 | H11: 1386 | I11: 1478 | J11: 1652 | K11: 1540 | L11: 1407 | M11: 1309 | N11: 2452
A12: Extranjeros2/ | B12: =SUM(C12:N12) -> 814 | C12: 115 | D12: 32 | E12: 39 | F12: 37 | G12: 45 | H12: 29 | I12: 93 | J12: 65 | K12: 68 | L12: 100 | M12: 45 | N12: 146
A13: Defunciones | B13: =SUM(C13:N13) -> 22278 | C13: 2511 | D13: 1768 | E13: 1170 | F13: 1756 | G13: 2129 | H13: 1780 | I13: 2002 | J13: 1864 | K13: 1774 | L13: 2139 | M13: 1761 | N13: 1624
A14: Divorcios | B14: =SUM(C14:N14) -> 12794 | C14: 730 | D14: 1241 | E14: 1160 | F14: 1158 | G14: 1886 | H14: 837 | I14: 957 | J14: 1283 | K14: 859 | L14: 858 | M14: 1137 | N14: 688
A15: Separaciones Judiciales | B15: 52 | C15: 4 | D15: 5 | E15: 3 | F15: 8 | G15: 5 | H15: 3 | I15: 3 | J15: 4 | K15: 7 | L15: 3 | M15: 4 | N15: 3
A16: Reconocimientos | B16: 19771 | C16: 1224 | D16: 2150 | E16: 2193 | F16: 920 | G16: 3070 | H16: 1322 | I16: 1699 | J16: 1094 | K16: 967 | L16: 2461 | M16: 1286 | N16: 1385
A17: Legitimaciones | B17: 50 | C17: 1 | D17: 2 | E17: 30 | F17: 2 | G17: 3 | H17: 3 | I17: 0 | J17: 3 | K17: 1 | L17: 0 | M17: 3 | N17: 2
A18: Adopciones | B18: 199 | C18: 23 | D18: 3 | E18: 35 | F18: 4 | G18: 8 | H18: 27 | I18: 23 | J18: 20 | K18: 12 | L18: 13 | M18: 12 | N18: 19
A19: Impugnación de paternidad | B19: 303 | C19: 33 | D19: 39 | E19: 0 | F19: 29 | G19: 24 | H19: 51 | I19: 15 | J19: 20 | K19: 21 | L19: 18 | M19: 6 | N19: 47
A20: Investigación de paternidad | B20: 335 | C20: 26 | D20: 45 | E20: 17 | F20: 47 | G20: 43 | H20: 30 | I20: 17 | J20: 25 | K20: 14 | L20: 20 | M20: 12 | N20: 39
A21: Opciones 3/ | B21: 112 | C21: 5 | D21: 21 | E21: 18 | F21: 1 | G21: 12 | H21: 4 | I21: 7 | J21: 8 | K21: 18 | L21: 2 | M21: 6 | N21: 10
A22: Cartas de naturalización entregadas | B22: 3791 | C22: =SUM(C23:C24) -> 183 | D22: =SUM(D23:D24) -> 253 | E22: 278 | F22: 294 | G22: 236 | H22: 178 | I22: 243 | J22: 462 | K22: 461 | L22: 385 | M22: 431 | N22: 387
A23: Hombres | B23: =SUM(C23:N23) -> 1608 | C23: 77 | D23: 93 | E23: 116 | F23: 134 | G23: 100 | H23: 81 | I23: 107 | J23: 186 | K23: 199 | L23: 166 | M23: 188 | N23: 161
A24: Mujeres | B24: =SUM(C24:N24) -> 2183 | C24: 106 | D24: 160 | E24: 162 | F24: 160 | G24: 136 | H24: 97 | I24: 136 | J24: 276 | K24: 262 | L24: 219 | M24: 243 | N24: 226
A27: 1/ Todos los datos se refieren a hechos inscritos en el mes respectivo, no así a los ocurridos.
A29: 2/ Matrimonios inscritos, pero realizados en el extranjero.
A31: 3/ Trámite realizado en Actos Jurídicos.
A33: Fuente: Sección de Inscripciones, Oficina de Actos Jurídicos, Sección de Opciones y Naturalizaciones del Tribunal Supremo de Elecciones.

Sheet G6
A2: GRÁFICO 6
A3: COSTA RICA: MATRIMONIOS INSCRITOS, SEGÚN CLASE DE INSCRIPCIÓN | K3: MATRIMONIOS INSCRITOS
A4: AL 31 DE DICIEMBRE 2015 | K4: Civiles | L4: 21232 | M4: =+L4/$L$7*100 -> 71.66919831
K5: Católicos | L5: 7579 | M5: =+L5/$L$7*100 -> 25.58312236
K6: Extranjeros | L6: 814 | M6: =+L6/$L$7*100 -> 2.747679325
E7: Sin lugar | K7: Total | L7: =SUM(L4:L6) -> 29625
A29: Fuente: Cuadro 12.

Sheet G7
A2: GRÁFICO 7 | K2: MATRIMONIOS vs DIVORCIOS
A3: COSTA RICA: MATRIMONIOS Y DIVORCIOS INSCRITOS | L3: Matrimonios | M3: Divorcios
A4: POR MES, AL 31 DE DICIEMBRE 2015 | K4: ENE | L4: 3602 | M4: 730
K5: FEB | L5: 3540 | M5: 1241
K6: MAR | L6: 2445 | M6: 1160
K7: ABR | L7: 2166 | M7: 1158
K8: MAY | L8: 2609 | M8: 1886
K9: JUN | L9: 1823 | M9: 837
K10: JUL | L10: 2063 | M10: 957
K11: AGO | L11: 2295 | M11: 1283
K12: SET | L12: 2047 | M12: 859
K13: OCT | L13: 2008 | M13: 858
K14: NOV | L14: 1630 | M14: 1137
K15: DIC | L15: 3397 | M15: 688
L16: =SUM(L4:L15) -> 29625 | M16: =SUM(M4:M15) -> 12794
A30: Fuente: Cuadro 12.

Sheet 13
A1: CUADRO 13
A2: COSTA RICA: NACIMIENTOS INSCRITOS, POR PROVINCIA Y PARTIDO ESPECIAL
A3: SEGÚN MES, AL 31 DE DICIEMBRE 2015
A5: Mes | B5: Total | C5: San José | D5: Alajuela | E5: Cartago | F5: Heredia | G5: Guanacaste | H5: Puntarenas | I5: Limón | J5: Partido especial 1/
A7: Costa Rica | B7: =SUM(B9:B20) -> 77037 | C7: =SUM(C9:C20) -> 28764 | D7: =SUM(D9:D20) -> 14065 | E7: 6712 | F7: 5343 | G7: 5940 | H7: 6260 | I7: 7883 | J7: 2070
A9: Enero | B9: =SUM(C9:J9) -> 6178 | C9: 2703 | D9: 1312 | E9: 638 | F9: 480 | G9: 152 | H9: 340 | I9: 403 | J9: 150
A10: Febrero | B10: =SUM(C10:J10) -> 6807 | C10: 2134 | D10: 1326 | E10: 604 | F10: 460 | G10: 670 | H10: 533 | I10: 904 | J10: 176
A11: Marzo | B11: 5064 | C11: 2195 | D11: 778 | E11: 270 | F11: 358 | G11: 456 | H11: 407 | I11: 455 | J11: 145
A12: Abril | B12: 6119 | C12: 2186 | D12: 768 | E12: 605 | F12: 494 | G12: 530 | H12: 539 | I12: 891 | J12: 106
A13: Mayo | B13: 6882 | C13: 1259 | D13: 1618 | E13: 554 | F13: 541 | G13: 747 | H13: 940 | I13: 896 | J13: 327
A14: Junio | B14: =SUM(C14:J14) -> 6341 | C14: 2380 | D14: 1277 | E14: 569 | F14: 558 | G14: 344 | H14: 492 | I14: 537 | J14: 184
A15: Julio | B15: 6552 | C15: 2725 | D15: 1148 | E15: 540 | F15: 405 | G15: 509 | H15: 436 | I15: 603 | J15: 186
A16: Agosto | B16: 6208 | C16: 2210 | D16: 1141 | E16: 572 | F16: 515 | G16: 469 | H16: 498 | I16: 643 | J16: 160
A17: Setiembre | B17: 6509 | C17: 3394 | D17: 1154 | E17: 508 | F17: 293 | G17: 343 | H17: 352 | I17: 332 | J17: 133
A18: Octubre | B18: 7410 | C18: 2552 | D18: 1382 | E18: 784 | F18: 335 | G18: 670 | H18: 639 | I18: 868 | J18: 180
A19: Noviembre | B19: 6787 | C19: 2444 | D19: 1343 | E19: 599 | F19: 543 | G19: 440 | H19: 570 | I19: 697 | J19: 151
A20: Diciembre | B20: =SUM(C20:J20) -> 6180 | C20: 2582 | D20: 818 | E20: 469 | F20: 361 | G20: 610 | H20: 514 | I20: 654 | J20: 172
A23: 1/ Inscripción de nacimientos de costarricenses nacidos en el extranjero.
A25: Fuente: Sección de Inscripciones del Tribunal Supremo de Elecciones.

Sheet 14
A1: CUADRO 14
A2: COSTA RICA: DEFUNCIONES INSCRITAS, POR PROVINCIA, SEGÚN MES
A3: AL 31 DE DICIEMBRE 2015
A5: Mes | B5: Total | C5: San José | D5: Alajuela | E5: Cartago | F5: Heredia | G5: Guanacaste | H5: Puntarenas | I5: Limón
A7: Costa Rica | B7: =SUM(B9:B20) -> 22278 | C7: =SUM(C9:C20) -> 9416 | D7: 3734 | E7: 2143 | F7: 1780 | G7: 1902 | H7: 1890 | I7: 1413
A9: Enero | B9: =SUM(C9:I9) -> 2511 | C9: 1146 | D9: 371 | E9: 202 | F9: 140 | G9: 241 | H9: 222 | I9: 189
A10: Febrero | B10: =SUM(C10:I10) -> 1768 | C10: 743 | D10: 311 | E10: 161 | F10: 104 | G10: 201 | H10: 145 | I10: 103
A11: Marzo | B11: 1170 | C11: 553 | D11: 152 | E11: 143 | F11: 88 | G11: 77 | H11: 87 | I11: 70
A12: Abril | B12: 1756 | C12: 739 | D12: 260 | E12: 197 | F12: 172 | G12: 131 | H12: 173 | I12: 84
A13: Mayo | B13: 2129 | C13: 810 | D13: 349 | E13: 197 | F13: 144 | G13: 245 | H13: 201 | I13: 183
A14: Junio | B14: 1780 | C14: 789 | D14: 282 | E14: 189 | F14: 133 | G14: 128 | H14: 130 | I14: 129
A15: Julio | B15: 2002 | C15: 955 | D15: 352 | E15: 168 | F15: 215 | G15: 108 | H15: 100 | I15: 104
A16: Agosto | B16: 1864 | C16: 702 | D16: 427 | E16: 228 | F16: 143 | G16: 131 | H16: 128 | I16: 105
A17: Setiembre | B17: 1774 | C17: 799 | D17: 335 | E17: 169 | F17: 131 | G17: 81 | H17: 151 | I17: 108
A18: Octubre | B18: 2139 | C18: 794 | D18: 347 | E18: 189 | F18: 194 | G18: 241 | H18: 218 | I18: 156
A19: Noviembre | B19: 1761 | C19: 739 | D19: 313 | E19: 139 | F19: 154 | G19: 133 | H19: 163 | I19: 120
A20: Diciembre | B20: 1624 | C20: 647 | D20: 235 | E20: 161 | F20: 162 | G20: 185 | H20: 172 | I20: 62
A23: Fuente: Sección de Inscripciones del Tribunal Supremo de Elecciones.

Sheet G8
A2: GRÁFICO 8 | K2: Nacimientos | L2: Defunciones
A3: COSTA RICA: NACIMIENTOS Y DEFUNCIONES INSCRITAS | K3: =SUM(K4:K15) -> 77037 | L3: =SUM(L4:L15) -> 22278
A4: POR MES, AL 31 DE DICIEMBRE 2015 | J4: ENE | K4: 6178 | L4: 2511
J5: FEB | K5: 6807 | L5: 1768
J6: MAR | K6: 5064 | L6: 1170
E7: Sin lugar | J7: ABR | K7: 6119 | L7: 1756
J8: MAY | K8: 6882 | L8: 2129
J9: JUN | K9: 6341 | L9: 1780
J10: JUL | K10: 6552 | L10: 2002
J11: AGO | K11: 6208 | L11: 1864
J12: SET | K12: 6509 | L12: 1774
J13: OCT | K13: 7410 | L13: 2139
J14: NOV | K14: 6787 | L14: 1761
J15: DIC | K15: 6180 | L15: 1624
A26: Fuente: Cuadros 13 y 14.

Sheet 15
A1: CUADRO 15
A2: COSTA RICA: TARJETAS DE IDENTIDAD DE MENORES IMPRESAS
A3: POR PROVINCIA, SEGÚN MES, AL 31 DE DICIEMBRE 2015
A5: Mes | B5: Total | C5: Provincia
C6: San José | D6: Alajuela | E6: Cartago | F6: Heredia | G6: Guanacaste | H6: Puntarenas | I6: Limón | J6: Ambulante | K6: Domicilio
A8: Total | B8: =SUM(C8:K8) -> 146505 | C8: =SUM(C10:C21) -> 49443 | D8: =SUM(D10:D21) -> 28139 | E8: 13008 | F8: 12751 | G8: 11515 | H8: 14372 | I8: 15702 | J8: =SUM(J10:J21) -> 1561 | K8: =SUM(K10:K21) -> 14
A10: Enero | B10: =SUM(C10:K10) -> 15231 | C10: 5471 | D10: 2749 | E10: 1257 | F10: 1341 | G10: 1184 | H10: 1544 | I10: 1685 | J10: 0 | K10: 0
A11: Febrero | B11: =SUM(C11:K11) -> 16929 | C11: 5177 | D11: 3368 | E11: 1250 | F11: 1401 | G11: 1523 | H11: 1973 | I11: 2237 | J11: 0 | K11: 0
A12: Marzo | B12: 8761 | C12: 2947 | D12: 1721 | E12: 817 | F12: 697 | G12: 736 | H12: 782 | I12: 868 | J12: 189 | K12: 4
A13: Abril | B13: 9259 | C13: 3196 | D13: 1684 | E13: 816 | F13: 800 | G13: 828 | H13: 907 | I13: 916 | J13: 106 | K13: 6
A14: Mayo | B14: 9173 | C14: 2872 | D14: 1684 | E14: 845 | F14: 744 | G14: 756 | H14: 901 | I14: 883 | J14: 488 | K14: 0
A15: Junio | B15: 9884 | C15: 3177 | D15: 1925 | E15: 915 | F15: 755 | G15: 762 | H15: 910 | I15: 1078 | J15: 362 | K15: 0
A16: Julio | B16: 14323 | C16: 5321 | D16: 2676 | E16: 1294 | F16: 1313 | G16: 1099 | H16: 1246 | I16: 1374 | J16: 0 | K16: 0
A17: Agosto | B17: 10282 | C17: 3370 | D17: 1899 | E17: 962 | F17: 983 | G17: 737 | H17: 919 | I17: 996 | J17: 416 | K17: 0
A18: Setiembre | B18: 10316 | C18: 3683 | D18: 2051 | E18: 1014 | F18: 997 | G18: 750 | H18: 863 | I18: 958 | J18: 0 | K18: 0
A19: Octubre | B19: 14527 | C19: 5106 | D19: 2934 | E19: 1540 | F19: 1322 | G19: 926 | H19: 1247 | I19: 1452 | J19: 0 | K19: 0
A20: Noviembre | B20: 14821 | C20: 4869 | D20: 2878 | E20: 1356 | F20: 1312 | G20: 1087 | H20: 1555 | I20: 1764 | J20: 0 | K20: 0
A21: Diciembre | B21: 12999 | C21: 4254 | D21: 2570 | E21: 942 | F21: 1086 | G21: 1127 | H21: 1525 | I21: 1491 | J21: 0 | K21: 4
A24: Fuente: Departamento Civil y Coordinación de Servicios Regionales del Tribunal Supremo de Elecciones.

Sheet 16
A1: CUADRO 16
A2: COSTA RICA: CERTIFICACIONES SOLICITADAS VÍA
A3: INTERNET, POR TIPO DE SOLICITUD, SEGÚN MES
A4: AL 31 DE DICIEMBRE 2015
A6: Mes | B6: Total | C6: Tipo de solicitud
C7: Nacimiento | D7: Matrimonio | E7: Defunción | F7: No aparece matrimonio
A9: Total | B9: =SUM(C9:F9) -> 80817 | C9: =SUM(C11:C22) -> 42535 | D9: =SUM(D11:D22) -> 17090 | E9: =SUM(E11:E22) -> 6963 | F9: =SUM(F11:F22) -> 14229
A11: Enero | B11: =SUM(C11:F11) -> 8443 | C11: 5026 | D11: 1541 | E11: 582 | F11: 1294
A12: Febrero | B12: =SUM(C12:F12) -> 7151 | C12: 4244 | D12: 1278 | E12: 539 | F12: 1090
A13: Marzo | B13: 6541 | C13: 3522 | D13: 1332 | E13: 558 | F13: 1129
A14: Abril | B14: 6223 | C14: 3339 | D14: 1221 | E14: 603 | F14: 1060
A15: Mayo | B15: 5766 | C15: 3197 | D15: 1240 | E15: 418 | F15: 911
A16: Junio | B16: 6409 | C16: 3695 | D16: 1117 | E16: 535 | F16: 1062
A17: Julio | B17: 5861 | C17: 3040 | D17: 1208 | E17: 611 | F17: 1002
A18: Agosto | B18: 10246 | C18: 5054 | D18: 2463 | E18: 841 | F18: 1888
A19: Setiembre | B19: 9629 | C19: 4560 | D19: 2233 | E19: 813 | F19: 2023
A20: Octubre | B20: 5342 | C20: 2429 | D20: 1197 | E20: 551 | F20: 1165
A21: Noviembre | B21: 5401 | C21: 2538 | D21: 1265 | E21: 540 | F21: 1058
A22: Diciembre | B22: 3805 | C22: 1891 | D22: 995 | E22: 372 | F22: 547
A25: Fuente: Departamento Civil del Tribunal Supremo de Elecciones.

Sheet 17
A2: CUADRO 17
A3: COSTA RICA: CARTAS DE NATURALIZACIÓN ENTREGADAS, POR MES
A4: SEGÚN PAÍS DE ORIGEN, AL 31 DE DICIEMBRE 2015
A6: País de origen | B6: Total | C6: Enero | D6: Febrero | E6: Marzo | F6: Abril | G6: Mayo | H6: Junio | I6: Julio | J6: Agosto | K6: Setiembre | L6: Octubre | M6: Noviembre | N6: Diciembre
A8: Total | B8: =SUM(B10:B75) -> 3791 | C8: 183 | D8: 253 | E8: 278 | F8: 294 | G8: 236 | H8: 178 | I8: 243 | J8: 462 | K8: 461 | L8: 385 | M8: 431 | N8: 387
A10: Alemania | B10: =SUM(C10:N10) -> 7 | C10: 1 | D10: 0 | E10: 0 | F10: 0 | G10: 0 | H10: 0 | I10: 0 | J10: 2 | K10: 1 | L10: 0 | M10: 3 | N10: 0
A11: Apatrida | B11: =SUM(C11:N11) -> 1 | C11: 0 | D11: 0 | E11: 0 | F11: 0 | G11: 0 | H11: 0 | I11: 0 | J11: 1 | K11: 0 | L11: 0 | M11: 0 | N11: 0
A12: Argentina | B12: =SUM(C12:N12) -> 12 | C12: 1 | D12: 0 | E12: 2 | F12: 2 | G12: 0 | H12: 3 | I12: 0 | J12: 0 | K12: 2 | L12: 0 | M12: 1 | N12: 1
A13: Argelia | B13: 1 | C13: 0 | D13: 0 | E13: 0 | F13: 0 | G13: 0 | H13: 0 | I13: 0 | J13: 0 | K13: 1 | L13: 0 | M13: 0 | N13: 0
A14: Austria | B14: 2 | C14: 0 | D14: 1 | E14: 0 | F14: 0 | G14: 0 | H14: 0 | I14: 0 | J14: 0 | K14: 0 | L14: 0 | M14: 1 | N14: 0
A15: Australia | B15: 2 | C15: 0 | D15: 0 | E15: 0 | F15: 0 | G15: 0 | H15: 0 | I15: 0 | J15: 0 | K15: 0 | L15: 0 | M15: 2 | N15: 0
A16: Bélgica | B16: 4 | C16: 0 | D16: 0 | E16: 1 | F16: 1 | G16: 0 | H16: 0 | I16: 1 | J16: 0 | K16: 0 | L16: 1 | M16: 0 | N16: 0
A17: Belice | B17: 1 | C17: 0 | D17: 0 | E17: 0 | F17: 0 | G17: 0 | H17: 0 | I17: 0 | J17: 0 | K17: 0 | L17: 0 | M17: 1 | N17: 0
A18: Bolivia | B18: 11 | C18: 0 | D18: 0 | E18: 0 | F18: 2 | G18: 0 | H18: 1 | I18: 1 | J18: 6 | K18: 0 | L18: 0 | M18: 1 | N18: 0
A19: Brasil | B19: 6 | C19: 2 | D19: 0 | E19: 2 | F19: 0 | G19: 0 | H19: 0 | I19: 1 | J19: 1 | K19: 0 | L19: 0 | M19: 0 | N19: 0
A20: Bielorrusia | B20: 2 | C20: 0 | D20: 0 | E20: 0 | F20: 0 | G20: 0 | H20: 0 | I20: 0 | J20: 0 | K20: 0 | L20: 0 | M20: 0 | N20: 2
A21: Cabo Verde | B21: 2 | C21: 0 | D21: 0 | E21: 0 | F21: 0 | G21: 0 | H21: 0 | I21: 0 | J21: 2 | K21: 0 | L21: 0 | M21: 0 | N21: 0
A22: Canadá | B22: 20 | C22: 0 | D22: 0 | E22: 1 | F22: 5 | G22: 2 | H22: 1 | I22: 0 | J22: 4 | K22: 3 | L22: 1 | M22: 2 | N22: 1
A23: Chile | B23: 8 | C23: 0 | D23: 0 | E23: 2 | F23: 2 | G23: 0 | H23: 0 | I23: 0 | J23: 0 | K23: 1 | L23: 2 | M23: 0 | N23: 1
A24: China | B24: 133 | C24: 5 | D24: 17 | E24: 6 | F24: 8 | G24: 9 | H24: 6 | I24: 8 | J24: 20 | K24: 13 | L24: 9 | M24: 14 | N24: 18
A25: Colombia | B25: 667 | C25: 39 | D25: 65 | E25: 75 | F25: 45 | G25: 44 | H25: 23 | I25: 47 | J25: 72 | K25: 74 | L25: 72 | M25: 68 | N25: 43
A26: Corea | B26: 1 | C26: 0 | D26: 0 | E26: 0 | F26: 0 | G26: 0 | H26: 0 | I26: 0 | J26: 0 | K26: 0 | L26: 0 | M26: 1 | N26: 0
A27: Costa Rica | B27: 3 | C27: 0 | D27: 0 | E27: 0 | F27: 0 | G27: 0 | H27: 0 | I27: 0 | J27: 0 | K27: 0 | L27: 0 | M27: 3 | N27: 0
A28: Croacia | B28: 1 | C28: 0 | D28: 0 | E28: 0 | F28: 0 | G28: 0 | H28: 0 | I28: 0 | J28: 0 | K28: 1 | L28: 0 | M28: 0 | N28: 0
A29: Cuba | B29: 80 | C29: 4 | D29: 5 | E29: 6 | F29: 6 | G29: 6 | H29: 4 | I29: 7 | J29: 8 | K29: 5 | L29: 9 | M29: 9 | N29: 11
A30: Dominica | B30: 6 | C30: 0 | D30: 0 | E30: 0 | F30: 0 | G30: 0 | H30: 0 | I30: 0 | J30: 6 | K30: 0 | L30: 0 | M30: 0 | N30: 0
A31: Ecuador | B31: 26 | C31: 3 | D31: 0 | E31: 1 | F31: 1 | G31: 0 | H31: 0 | I31: 2 | J31: 0 | K31: 6 | L31: 1 | M31: 9 | N31: 3
A32: El Salvador | B32: 160 | C32: 7 | D32: 7 | E32: 9 | F32: 12 | G32: 14 | H32: 9 | I32: 8 | J32: 19 | K32: 27 | L32: 19 | M32: 18 | N32: 11
A33: España | B33: 15 | C33: 0 | D33: 0 | E33: 2 | F33: 2 | G33: 2 | H33: 1 | I33: 2 | J33: 0 | K33: 2 | L33: 2 | M33: 0 | N33: 2
A34: Estados Unidos | B34: 146 | C34: 8 | D34: 7 | E34: 6 | F34: 12 | G34: 10 | H34: 2 | I34: 13 | J34: 20 | K34: 16 | L34: 17 | M34: 17 | N34: 18
A35: Filipinas | B35: 3 | C35: 0 | D35: 0 | E35: 0 | F35: 0 | G35: 0 | H35: 0 | I35: 0 | J35: 2 | K35: 0 | L35: 1 | M35: 0 | N35: 0
A36: Finlandia | B36: 3 | C36: 0 | D36: 0 | E36: 0 | F36: 0 | G36: 0 | H36: 0 | I36: 0 | J36: 0 | K36: 0 | L36: 1 | M36: 1 | N36: 1
A37: Francia | B37: 7 | C37: 0 | D37: 0 | E37: 1 | F37: 1 | G37: 1 | H37: 0 | I37: 0 | J37: 0 | K37: 2 | L37: 1 | M37: 1 | N37: 0
A38: Gran Bretaña | B38: 3 | C38: 0 | D38: 0 | E38: 0 | F38: 1 | G38: 0 | H38: 0 | I38: 1 | J38: 0 | K38: 0 | L38: 0 | M38: 0 | N38: 1
A39: Georgia | B39: 1 | C39: 0 | D39: 0 | E39: 0 | F39: 0 | G39: 0 | H39: 0 | I39: 0 | J39: 0 | K39: 0 | L39: 0 | M39: 1 | N39: 0
A40: Grecia | B40: 3 | C40: 0 | D40: 0 | E40: 1 | F40: 0 | G40: 0 | H40: 0 | I40: 0 | J40: 0 | K40: 0 | L40: 0 | M40: 2 | N40: 0
A41: Guatemala | B41: 43 | C41: 5 | D41: 2 | E41: 4 | F41: 3 | G41: 2 | H41: 1 | I41: 5 | J41: 6 | K41: 4 | L41: 3 | M41: 4 | N41: 4
A42: Haití | B42: 5 | C42: 1 | D42: 0 | E42: 0 | F42: 0 | G42: 1 | H42: 0 | I42: 1 | J42: 1 | K42: 1 | L42: 0 | N42: 0
A43: Holanda | B43: 3 | C43: 0 | D43: 0 | E43: 0 | F43: 0 | G43: 0 | H43: 0 | I43: 1 | J43: 1 | K43: 0 | L43: 0 | M43: 1 | N43: 0
A44: Honduras | B44: 57 | C44: 4 | D44: 1 | E44: 4 | F44: 3 | G44: 3 | H44: 4 | I44: 1 | J44: 9 | K44: 6 | L44: 6 | M44: 7 | N44: 9
A45: Hungría | B45: 1 | C45: 0 | D45: 0 | E45: 0 | F45: 0 | G45: 0 | H45: 0 | I45: 0 | J45: 0 | K45: 1 | L45: 0 | M45: 0 | N45: 0
A46: Inglaterra | B46: 1 | C46: 0 | D46: 1 | E46: 0 | F46: 0 | G46: 0 | H46: 0 | I46: 0 | J46: 0 | K46: 0 | L46: 0 | M46: 0 | N46: 0
A47: Iraq | B47: 3 | C47: 0 | D47: 0 | E47: 0 | F47: 0 | G47: 0 | H47: 2 | I47: 0 | J47: 1 | K47: 0 | L47: 0 | M47: 0 | N47: 0
A48: Italia | B48: 15 | C48: 0 | D48: 0 | E48: 0 | F48: 2 | G48: 2 | H48: 0 | I48: 2 | J48: 0 | K48: 1 | L48: 3 | M48: 2 | N48: 3
A49: Irlanda | B49: 1 | C49: 0 | D49: 0 | E49: 0 | F49: 0 | G49: 0 | H49: 0 | I49: 0 | J49: 0 | K49: 0 | L49: 1 | M49: 0 | N49: 0
A50: Jamaica | B50: 1 | C50: 0 | D50: 0 | E50: 0 | F50: 0 | G50: 0 | H50: 0 | I50: 0 | J50: 0 | K50: 0 | L50: 0 | M50: 1 | N50: 0
A51: Jordania | B51: 3 | C51: 0 | D51: 0 | E51: 0 | F51: 1 | G51: 0 | H51: 0 | I51: 0 | J51: 2 | K51: 0 | L51: 0 | M51: 0 | N51: 0
A52: Libano | B52: 3 | C52: 0 | D52: 0 | E52: 0 | F52: 0 | G52: 0 | H52: 0 | I52: 1 | J52: 2 | K52: 0 | L52: 0 | M52: 0 | N52: 0
A53: Marruecos | B53: 1 | C53: 0 | D53: 0 | E53: 0 | F53: 0 | G53: 0 | H53: 0 | I53: 0 | J53: 1 | K53: 0 | L53: 0 | M53: 0 | N53: 0
A54: México | B54: 25 | C54: 1 | D54: 3 | E54: 4 | F54: 2 | G54: 2 | H54: 0 | I54: 1 | J54: 1 | K54: 3 | L54: 3 | M54: 4 | N54: 1
A55: Nicaragua | B55: 1971 | C55: 82 | D55: 123 | E55: 133 | F55: 156 | G55: 120 | H55: 94 | I55: 122 | J55: 241 | K55: 257 | L55: 192 | M55: 227 | N55: 224
A56: Palestina | B56: 1 | C56: 0 | D56: 0 | E56: 0 | F56: 0 | G56: 0 | H56: 0 | I56: 0 | J56: 0 | K56: 0 | L56: 1 | M56: 0 | N56: 0
A57: Panamá | B57: 61 | C57: 4 | D57: 3 | E57: 4 | F57: 7 | G57: 8 | H57: 5 | I57: 3 | J57: 4 | K57: 7 | L57: 5 | M57: 5 | N57: 6
A58: Paraguay | B58: 2 | C58: 0 | D58: 0 | E58: 0 | F58: 0 | G58: 0 | H58: 0 | I58: 0 | J58: 1 | K58: 0 | L58: 0 | M58: 1 | N58: 0
A59: Perú | B59: 77 | C59: 0 | D59: 4 | E59: 5 | F59: 9 | G59: 6 | H59: 6 | I59: 5 | J59: 11 | K59: 9 | L59: 10 | M59: 4 | N59: 8
A60: Puerto Rico | B60: 3 | C60: 0 | D60: 0 | E60: 0 | F60: 1 | G60: 0 | H60: 1 | I60: 0 | J60: 0 | K60: 1 | L60: 0 | M60: 0 | N60: 0
A61: Reino Unido | B61: 1 | C61: 0 | D61: 0 | E61: 0 | F61: 0 | G61: 0 | H61: 0 | I61: 0 | J61: 0 | K61: 0 | L61: 0 | M61: 1 | N61: 0
A62: República Dominicana | B62: 65 | C62: 11 | D62: 3 | E62: 3 | F62: 2 | G62: 1 | H62: 0 | I62: 0 | J62: 4 | K62: 4 | L62: 14 | M62: 11 | N62: 12
A63: Portugal | B63: 1 | C63: 0 | D63: 0 | E63: 0 | F63: 0 | G63: 0 | H63: 0 | I63: 0 | J63: 1 | K63: 0 | L63: 0 | M63: 0 | N63: 0
A64: Rumanía | B64: 2 | C64: 0 | D64: 0 | E64: 0 | F64: 1 | G64: 0 | H64: 1 | I64: 0 | J64: 0 | K64: 0 | L64: 0 | M64: 0 | N64: 0
A65: Rusia | B65: 6 | C65: 0 | D65: 0 | E65: 1 | F65: 0 | G65: 0 | H65: 0 | I65: 1 | J65: 0 | K65: 1 | L65: 2 | M65: 1 | N65: 0
A66: Siria | B66: 2 | C66: 0 | D66: 0 | E66: 0 | F66: 1 | G66: 0 | H66: 0 | I66: 0 | J66: 0 | K66: 0 | L66: 1 | M66: 0 | N66: 0
A67: Sudan | B67: 1 | C67: 0 | D67: 0 | E67: 0 | F67: 0 | G67: 0 | H67: 0 | I67: 0 | J67: 0 | K67: 0 | L67: 0 | M67: 0 | N67: 1
A68: Suecia | B68: 1 | C68: 0 | D68: 0 | E68: 0 | F68: 0 | G68: 0 | H68: 1 | I68: 0 | J68: 0 | K68: 0 | L68: 0 | M68: 0 | N68: 0
A69: Suiza | B69: 17 | C69: 0 | D69: 2 | E69: 1 | F69: 0 | G69: 1 | H69: 1 | I69: 1 | J69: 3 | K69: 4 | L69: 1 | M69: 2 | N69: 1
A70: Tailandia | B70: 3 | C70: 0 | D70: 0 | E70: 0 | F70: 0 | G70: 0 | H70: 0 | I70: 0 | J70: 1 | L70: 2 | M70: 0 | N70: 0
A71: Taiwán | B71: 8 | C71: 1 | D71: 1 | E71: 1 | F71: 1 | G71: 0 | H71: 1 | I71: 0 | J71: 1 | K71: 1 | L71: 1 | M71: 0 | N71: 0
A72: Turquía | B72: 1 | C72: 0 | D72: 0 | E72: 0 | F72: 1 | G72: 0 | H72: 0 | I72: 0 | J72: 0 | K72: 0 | L72: 0 | M72: 0 | N72: 0
A73: Ucrania | B73: 3 | C73: 0 | D73: 0 | E73: 1 | F73: 1 | G73: 1 | H73: 0 | I73: 0 | J73: 0 | K73: 0 | L73: 0 | M73: 0 | N73: 0
A74: Uruguay | B74: 12 | C74: 0 | D74: 0 | E74: 0 | F74: 0 | G74: 0 | H74: 11 | I74: 0 | J74: 0 | K74: 1 | L74: 0 | M74: 0 | N74: 0
A75: Venezuela | B75: 54 | C75: 4 | D75: 8 | E75: 2 | F75: 3 | G75: 1 | H75: 0 | I75: 8 | J75: 8 | K75: 6 | L75: 4 | M75: 5 | N75: 5
A78: FUENTE: Sección de Opciones y Naturalizaciones del Tribunal Supremo de Elecciones.

Sheet 18
A1: CUADRO 18
A2: COSTA RICA: INGRESO DE SOLICITUDES DE DETERMINACIÓN DE PATERNIDAD
A3: POR PROVINCIA, SEGÚN MES, AL 31 DE DICIEMBRE 2015
A5: Mes | B5: Total | C5: San José | D5: Alajuela | E5: Cartago | F5: Heredia | G5: Guanacaste | H5: Puntarenas | I5: Limón | J5: Partido Especial
A7: Total | B7: =SUM(B9:B20) -> 5381 | C7: =SUM(C9:C20) -> 1793 | D7: 946 | E7: 404 | F7: 336 | G7: 561 | H7: 564 | I7: 774 | J7: =SUM(J9:J20) -> 3
A9: Enero | B9: =SUM(C9:J9) -> 431 | C9: 171 | D9: 58 | E9: 37 | F9: 43 | G9: 49 | H9: 39 | I9: 34 | J9: 0
A10: Febrero | B10: =SUM(C10:J10) -> 612 | C10: 179 | D10: 120 | E10: 43 | F10: 29 | G10: 74 | H10: 72 | I10: 95 | J10: 0
A11: Marzo | B11: 492 | C11: 167 | D11: 85 | E11: 37 | F11: 38 | G11: 49 | H11: 43 | I11: 73 | J11: 0
A12: Abril | B12: 283 | C12: 105 | D12: 45 | E12: 17 | F12: 12 | G12: 39 | H12: 20 | I12: 45 | J12: 0
A13: Mayo | B13: 748 | C13: 213 | D13: 141 | E13: 62 | F13: 41 | G13: 76 | H13: 93 | I13: 122 | J13: 0
A14: Junio | B14: =SUM(C14:J14) -> 565 | C14: 192 | D14: 107 | E14: 42 | F14: 35 | G14: 50 | H14: 63 | I14: 75 | J14: 1
A15: Julio | B15: 451 | C15: 172 | D15: 68 | E15: 24 | F15: 29 | G15: 51 | H15: 44 | I15: 61 | J15: 2
A16: Agosto | B16: 410 | C16: 174 | D16: 74 | E16: 24 | F16: 18 | G16: 31 | H16: 42 | I16: 47 | J16: 0
A17: Setiembre | B17: 360 | C17: 68 | D17: 76 | E17: 23 | F17: 27 | G17: 46 | H17: 53 | I17: 67 | J17: 0
A18: Octubre | B18: 397 | C18: 115 | D18: 68 | E18: 46 | F18: 29 | G18: 35 | H18: 40 | I18: 64 | J18: 0
A19: Noviembre | B19: 386 | C19: 146 | D19: 65 | E19: 31 | F19: 23 | G19: 40 | H19: 32 | I19: 49 | J19: 0
A20: Diciembre | B20: 246 | C20: 91 | D20: 39 | E20: 18 | F20: 12 | G20: 21 | H20: 23 | I20: 42 | J20: 0
A23: Fuente: Sección de Inscripciones del Tribunal Supremo de Elecciones.

Sheet 19
A2: CUADRO 19
A3: COSTA RICA: INGRESO DE SOLICITUDES DE DETERMINACIÓN DE PATERNIDAD, POR MES
A4: SEGÚN NACIONALIDAD DE LOS PADRES, AL 31 DE DICIEMBRE DE 2015
A6: NACIONALIDAD | B6: TOTAL | C6: Enero | D6: Febrero | E6: Marzo | F6: Abril | G6: Mayo | H6: Junio | I6: Julio | J6: Agosto | K6: Setiembre | L6: Octubre | M6: Noviembre | N6: Diciembre
A8: TOTAL | B8: =B11+B15+B19+B23+B27+B31 -> 5381 | C8: =C11+C15+C19+C23+C27+C31 -> 431 | D8: =D11+D15+D19+D23+D27+D31 -> 612 | E8: =E11+E15+E19+E23+E27+E31 -> 492 | F8: 283 | G8: =G11+G15+G19+G23+G27+G31 -> 748 | H8: =H11+H15+H19+H23+H27+H31 -> 565 | I8: =I11+I15+I19+I23+I27+I31 -> 451 | J8: 410 | K8: =K11+K15+K19+K23+K27+K31 -> 360 | L8: 397 | M8: 386 | N8: 246
A10: Costa Rica
A11: Presunto padre | B11: =SUM(C11:N11) -> 4623 | C11: 364 | D11: 536 | E11: 417 | F11: 243 | G11: 663 | H11: 542 | I11: 413 | J11: 376 | K11: 308 | L11: 279 | M11: 275 | N11: 207
A12: Madre | B12: =SUM(C12:N12) -> 4747 | C12: 389 | D12: 559 | E12: 427 | F12: 240 | G12: 668 | H12: 548 | I12: 417 | J12: 382 | K12: 308 | L12: 300 | M12: 285 | N12: 224
A14: Nicaragua
A15: Presunto padre | B15: =SUM(C15:N15) -> 700 | C15: 57 | D15: 68 | E15: 63 | F15: 31 | G15: 76 | H15: 19 | I15: 37 | J15: 30 | K15: 51 | L15: 118 | M15: 111 | N15: 39
A16: Madre | B16: =SUM(C16:N16) -> 622 | C16: 41 | D16: 53 | E16: 64 | F16: 41 | G16: 75 | H16: 15 | I16: 33 | J16: 28 | K16: 52 | L16: 97 | M16: 101 | N16: 22
A18: Colombia
A19: Presunto padre | B19: =SUM(C19:N19) -> 12 | C19: 2 | D19: 1 | E19: 2 | F19: 2 | G19: 3 | H19: 0 | I19: 1 | J19: 1 | K19: 0 | L19: 0 | M19: 0 | N19: 0
A20: Madre | B20: =SUM(C20:N20) -> 1 | C20: 0 | D20: 0 | E20: 0 | F20: 1 | G20: 0 | H20: 0 | I20: 0 | J20: 0 | K20: 0 | L20: 0 | M20: 0 | N20: 0
A22: Panamá
A23: Presunto padre | B23: =SUM(C23:N23) -> 10 | C23: 2 | D23: 3 | E23: 0 | F23: 2 | G23: 1 | H23: 0 | I23: 0 | J23: 2 | K23: 0 | L23: 0 | M23: 0 | N23: 0
A24: Madre | B24: =SUM(C24:N24) -> 2 | C24: 0 | D24: 0 | E24: 0 | F24: 0 | G24: 0 | H24: 1 | I24: 1 | J24: 0 | K24: 0 | L24: 0 | M24: 0 | N24: 0
A26: Otros
A27: Presunto padre | B27: =SUM(C27:N27) -> 25 | C27: =1+1+1+1 -> 4 | D27: =2+1 -> 3 | E27: =1+2+2+1 -> 6 | F27: =2+2+1 -> 5 | G27: =1+1 -> 2 | H27: =1+1+2 -> 4 | I27: 0 | J27: 0 | K27: 1 | L27: 0 | M27: 0 | N27: 0
A28: Madre | B28: =SUM(C28:N28) -> 1 | C28: =0 -> 0 | D28: 0 | E28: 0 | F28: =0 -> 0 | G28: =1 -> 1 | H28: 0 | I28: 0 | J28: 0 | K28: 0 | L28: 0 | M28: 0 | N28: 0
A30: No Indica
A31: Presunto padre | B31: =SUM(C31:N31) -> 11 | C31: 2 | D31: 1 | E31: 4 | F31: 0 | G31: 3 | H31: 0 | I31: 0 | J31: 1 | K31: 0 | L31: 0 | M31: 0 | N31: 0
A32: Madre | B32: =SUM(C32:N32) -> 8 | C32: 1 | D32: 0 | E32: 1 | F32: 1 | G32: 4 | H32: 1 | I32: 0 | J32: 0 | K32: 0 | L32: 0 | M32: 0 | N32: 0
A35: Fuente: Sección de Inscripciones del Tribunal Supremo de Elecciones.

Sheet 20
A1: CUADRO 20
A2: COSTA RICA: RESULTADO DE PRUEBAS DE ADN PARA
A3: DETERMINAR LA PATERNIDAD, SEGÚN MES
A4: AL 31 DE DICIEMBRE 2015
A6: Mes | B6: Total | D6: Absoluto | I6: Porcentaje
D7: Positivo | F7: Negativo | I7: Positivo | K7: Negativo
A9: Total | B9: =SUM(B11:B22) -> 2951 | D9: =SUM(D11:D22) -> 2211 | F9: =SUM(F11:F22) -> 740 | I9: =+D9/B9*100 -> 74.92375466 | K9: =+F9/B9*100 -> 25.07624534
A11: Enero | B11: =SUM(D11:F11) -> 515 | D11: 374 | F11: 141 | I11: =+D11/B11*100 -> 72.62135922 | K11: =+F11/B11*100 -> 27.37864078
A12: Febrero | B12: =SUM(D12:F12) -> 315 | D12: 227 | F12: 88 | I12: =+D12/B12*100 -> 72.06349206 | K12: =+F12/B12*100 -> 27.93650794
A13: Marzo | B13: 150 | D13: 112 | F13: 38 | I13: 74.66666667 | K13: 25.33333333
A14: Abril | B14: 109 | D14: 71 | F14: 38 | I14: 65.13761468 | K14: 34.86238532
A15: Mayo | B15: 206 | D15: 183 | F15: 23 | I15: 88.83495146 | K15: 11.16504854
A16: Junio | B16: 201 | D16: 155 | F16: 46 | I16: 77.11442786 | K16: 22.88557214
A17: Julio | B17: 281 | D17: 222 | F17: 59 | I17: 79.00355872 | K17: 20.99644128
A18: Agosto | B18: 263 | D18: 204 | F18: 59 | I18: 77.56653992 | K18: 22.43346008
A19: Setiembre | B19: 141 | D19: 88 | F19: 53 | I19: 62.41134752 | K19: 37.58865248
A20: Octubre | B20: 374 | D20: 284 | F20: 90 | I20: 75.93582888 | K20: 24.06417112
A21: Noviembre | B21: 251 | D21: 177 | F21: 74 | I21: 70.51792829 | K21: 29.48207171
A22: Diciembre | B22: 145 | D22: 114 | F22: 31 | I22: 78.62068966 | K22: 21.37931034
A25: Fuente: Sección de Inscripciones del Tribunal Supremo de Elecciones.

Sheet 21
A1: CUADRO 21
A2: COSTA RICA: CANTIDAD DE RESOLUCIONES, POR TIPO DE RESOLUCIÓN, SEGÚN MES
A3: AL 31 DE DICIEMBRE 2015
A5: Mes | B5: Total | C5: Tipo de resolución
C6: Electorales | D6: Inscripciones | E6: Municipales | F6: Naturalizaciones | G6: Ocursos, Paternidad y Otros | H6: Procedimientos Administrativos
A8: Total | B8: =SUM(C8:H8) -> 8423 | C8: =SUM(C10:C21) -> 405 | D8: 1079 | E8: 91 | F8: 6418 | G8: 171 | H8: 259
A10: Enero | B10: =SUM(C10:H10) -> 574 | C10: 11 | D10: 87 | E10: 6 | F10: 446 | G10: =0+1 -> 1 | H10: 23
A11: Febrero | B11: 556 | C11: 12 | D11: 82 | E11: 6 | F11: 428 | G11: =9+8 -> 17 | H11: 11
A12: Marzo | B12: 498 | C12: 16 | D12: 65 | E12: 7 | F12: 353 | G12: =0+20 -> 20 | H12: 37
A13: Abril | B13: 362 | C13: 17 | D13: 91 | E13: 7 | F13: 212 | G13: =6+6+4 -> 16 | H13: 19
A14: Mayo | B14: 530 | C14: 16 | D14: 91 | E14: 13 | F14: 379 | G14: =2+6 -> 8 | H14: 23
A15: Junio | B15: 694 | C15: 16 | D15: 119 | E15: 11 | F15: 512 | G15: =5+4+13 -> 22 | H15: 14
A16: Julio | B16: 963 | C16: 39 | D16: 110 | E16: 10 | F16: 740 | G16: =12+3+4 -> 19 | H16: 45
A17: Agosto | B17: 673 | C17: 38 | D17: 75 | E17: 6 | F17: 526 | G17: =5+2+3 -> 10 | H17: 18
A18: Setiembre | B18: 1069 | C18: 56 | D18: 74 | E18: 9 | F18: 909 | G18: =2+2+0 -> 4 | H18: 17
A19: Octubre | B19: 1160 | C19: 67 | D19: 95 | E19: 3 | F19: 947 | G19: =27+3+1 -> 31 | H19: 17
A20: Noviembre | B20: 616 | C20: 47 | D20: 58 | E20: 6 | F20: 485 | G20: =3+3+3 -> 9 | H20: 11
A21: Diciembre | B21: 728 | C21: 70 | D21: 132 | E21: 7 | F21: 481 | G21: =5+9+0 -> 14 | H21: 24
A24: Fuente: Secretaría del Tribunal Supremo de Elecciones.

Sheet 22
A1: CUADRO 22
A2: COSTA RICA: CANTIDAD DE RESOLUCIONES ELECTORALES
A3: POR ACCIÓN TRAMITADA, SEGÚN MES
A4: AL 31 DE DICIEMBRE 2015
A6: Mes | B6: Total | C6: Acción Tramitada
B7: Total | C7: Financiamiento de Partidos Políticos | D7: Hermenéutica Electoral | E7: Amparo Electoral | F7: Denuncia beligerancia o participación política prohibida | G7: Democracia semidirecta | H7: Apelación electoral | I7: Acción o demanda de nulidad | J7: Otros asuntos electorales
A9: Total | B9: =SUM(B11:B22) -> 405 | C9: 43 | D9: 58 | E9: 156 | F9: 21 | G9: 5 | H9: 52 | I9: 36 | J9: 34
A11: Enero | B11: =SUM(C11:J11) -> 11 | C11: 1 | D11: 5 | E11: 3 | F11: 2 | G11: 0 | H11: 0 | I11: 0 | J11: 0
A12: Febrero | B12: =SUM(C12:J12) -> 12 | C12: 4 | D12: 1 | E12: 4 | F12: 2 | G12: 0 | H12: 0 | I12: 0 | J12: 1
A13: Marzo | B13: 16 | C13: 3 | D13: 6 | E13: 5 | F13: 0 | G13: 0 | H13: 0 | I13: 1 | J13: 1
A14: Abril | B14: 17 | C14: 5 | D14: 8 | E14: 2 | F14: 2 | G14: 0 | H14: 0 | I14: 0 | J14: 0
A15: Mayo | B15: 16 | C15: 3 | D15: 5 | E15: 5 | F15: 1 | G15: 0 | H15: 0 | I15: 1 | J15: 1
A16: Junio | B16: 16 | C16: 2 | D16: 2 | E16: 5 | F16: 0 | G16: 0 | H16: 3 | I16: 2 | J16: 2
A17: Julio | B17: 39 | C17: 2 | D17: 5 | E17: 19 | F17: 3 | G17: 1 | H17: 2 | I17: 2 | J17: 5
A18: Agosto | B18: 38 | C18: 4 | D18: 8 | E18: 16 | F18: 3 | G18: 1 | H18: 1 | I18: 3 | J18: 2
A19: Setiembre | B19: 56 | C19: 6 | D19: 7 | E19: 26 | F19: 1 | G19: 1 | H19: 1 | I19: 9 | J19: 5
A20: Octubre | B20: 67 | C20: 3 | D20: 3 | E20: 38 | F20: 1 | G20: 1 | H20: 5 | I20: 12 | J20: 4
A21: Noviembre | B21: 47 | C21: 5 | D21: 6 | E21: 16 | F21: 1 | G21: 1 | H21: 6 | I21: 6 | J21: 6
A22: Diciembre | B22: 70 | C22: 5 | D22: 2 | E22: 17 | F22: 5 | G22: 0 | H22: 34 | I22: 0 | J22: 7
A25: Fuente: Secretaría del Tribunal Supremo de Elecciones.

Sheet 23
A1: CUADRO 23
A2: COSTA RICA: CANTIDAD DE RESOLUCIONES MUNICIPALES
A3: POR RESULTADO DE LA GESTIÓN, SEGÚN MES
A4: AL 31 DE DICIEMBRE 2015
A6: Mes | B6: Total | C6: Resultado de la Gestión
B7: Total | C7: Con lugar | D7: Rechazo de plano | E7: Archivo | F7: Sin lugar | G7: Rechazo
A9: Total | B9: =SUM(B11:B22) -> 91 | C9: 61 | D9: 10 | E9: 16 | F9: 3 | G9: 1
A11: Enero | B11: =SUM(C11:G11) -> 6 | C11: 3 | D11: 1 | E11: 2 | F11: 0 | G11: 0
A12: Febrero | B12: 6 | C12: 3 | D12: 2 | E12: 1 | F12: 0 | G12: 0
A13: Marzo | B13: 7 | C13: 7 | D13: 0 | E13: 0 | F13: 0 | G13: 0
A14: Abril | B14: 7 | C14: 3 | D14: 0 | E14: 4 | F14: 0 | G14: 0
A15: Mayo | B15: 13 | C15: 9 | D15: 2 | E15: 1 | F15: 1 | G15: 0
A16: Junio | B16: 11 | C16: 7 | D16: 2 | E16: 0 | F16: 2 | G16: 0
A17: Julio | B17: 10 | C17: 3 | D17: 1 | E17: 5 | F17: 0 | G17: 1
A18: Agosto | B18: 6 | C18: 5 | D18: 0 | E18: 1 | F18: 0 | G18: 0
A19: Setiembre | B19: 9 | C19: 9 | D19: 0 | E19: 0 | F19: 0 | G19: 0
A20: Octubre | B20: 3 | C20: 3 | D20: 0 | E20: 0 | F20: 0 | G20: 0
A21: Noviembre | B21: 6 | C21: 4 | D21: 1 | E21: 1 | F21: 0 | G21: 0
A22: Diciembre | B22: 7 | C22: 5 | D22: 1 | E22: 1 | F22: 0 | G22: 0
A25: Fuente: Secretaría del Tribunal Supremo de Elecciones.

Sheet 24
A2: CUADRO 24
A3: COSTA RICA: DONACIONES EN EFECTIVO REPORTADAS ANTE EL TRIBUNAL SUPREMO DE ELECCIONES
A4: SEGÚN PARTIDO POLÍTICO 1/
A5: - Cifras en colones, al 31 de diciembre de 2015 -
A6: PARTIDO POLÍTICO | B6: CICLO ELECTORAL MUNICIPAL 2014-2016
B7: DICIEMBRE 2015 | C7: PERIODO NO ELECTORAL 2014-2015 2/ | D7: PERIODO ELECTORAL 2015-2016 3/ | E7: TOTAL
A9: TOTAL | B9: =SUM(B11:B37) -> 35434155.65 | C9: =SUM(C11:C37) -> 588167007 | D9: =SUM(D11:D37) -> 162507852.7 | E9: =SUM(E11:E37) -> 750674859.7
A11: ACCION CIUDADANA | B11: 3789985 | C11: 53644696.52 | D11: 15947436.48 | E11: 69592133
A12: ACUERDO DE ALIANZA DE QUEPOS | B12: 500000 | C12: 0 | D12: 660000 | E12: 660000
A13: ALIANZA DEMOCRATA CRISTIANA | B13: 853000 | C13: 0 | D13: 1330204 | E13: 1330204
A14: ALIANZA PATRIOTICA | B14: 0 | C14: 1625000 | D14: 220000 | E14: 1845000
A15: ALIANZA POR SAN JOSE | B15: 6550000 | C15: 17250000 | D15: 26813000 | E15: 44063000
A16: ALIANZA SOCIAL POR LA UNION | B16: 0 | C16: 0 | D16: 0 | E16: 0
A17: AUTENTICO LIMONENSE | B17: 200000 | C17: 0 | D17: 200000 | E17: 200000
A18: AVANCE MONTES DE OCA | B18: 22000 | C18: 634000 | D18: 1308000 | E18: 1942000
A19: BARVA UNIDA | B19: 0 | C19: 0 | D19: 0 | E19: 0
A20: COALICION ALIANZA POR BELEN | B20: 0 | C20: 129500 | D20: 565000 | E20: 694500
A21: COALICION GENTE MONTES DE OCA | B21: 0 | C21: 0 | D21: 1270000 | E21: 1270000
A22: CURRIDABAT SIGLO XXI | B22: 3355200 | C22: 82200 | D22: 3879900 | E22: 3962100
A23: FRENTE AMPLIO | B23: 0 | C23: 102578720 | D23: 14940000 | E23: 117518720
A24: FUERZA DEMOCRATICA DESAMPARADE?A | B24: 8000 | C24: 33000 | D24: 792720 | E24: 825720
A25: INDEPENDIENTE ESCAZUCE?O | B25: 300000 | C25: 0 | D25: 950000 | E25: 950000
A26: LIBERACION NACIONAL | B26: 7616860.65 | C26: 334056063.6 | D26: 45800804.15 | E26: 379856867.8
A27: MOVIMIENTO AVANCE SANTO DOMINGO | B27: 236000 | C27: 2072598.52 | D27: 1887000 | E27: 3959598.52
A28: MOVIMIENTO LIBERTARIO | B28: 747110 | C28: 28083765 | D28: 6050538.05 | E28: 34134303.05
A29: NUEVA GENERACION | B29: 0 | C29: 773885 | D29: 2224250 | E29: 2998135
A30: PARRITA INDEPENDIENTE | B30: 0 | C30: 50000 | D30: 600000 | E30: 650000
A31: RENOVACION COSTARRICENSE | B31: 0 | C31: 1359000 | D31: 0 | E31: 1359000
A32: RENOVEMOS ALAJUELA | B32: 160000 | C32: 1170000 | D32: 1320000 | E32: 2490000
A33: REPUBLICANO SOCIAL CRISTIANO | B33: 5370000 | C33: 3297500 | D33: 25170000 | E33: 28467500
A34: RESTAURACION NACIONAL | B34: 0 | C34: 8367000 | D34: 0 | E34: 8367000
A35: TODO POR FLORES | B35: 0 | C35: 0 | D35: 1758000 | E35: 1758000
A36: UNIDAD SOCIAL CRISTIANA | B36: 0 | C36: 32960078.34 | D36: 455000 | E36: 33415078.34
A37: YUNTA PROGRESISTA ESCAZUCE?A | B37: 5726000 | C37: 0 | D37: 8366000 | E37: 8366000
A39: Notas:
A40: 1/ El detalle de cada contribuyente se puede consultar en http://www.tse.go.cr/contribuciones_partidos.htm
A41: 2/ El Proceso Electoral abarca el periodo comprendido entre el 20 de marzo de 2014 y el 6 de octubre de 2015.
A42: 3/ El valor acumulado de las donaciones comprende del 7 de octubre de 2015 al 31 de diciembre de 2015.
A43: 4/ El valor acumulado de las donaciones comprende desde el 20 de marzo de 2014 hasta el 31 de diciembre de 2015.
A45: Fuente: Reportes de contribuciones remitidos periódicamente por los partidos políticos al Departamento de Financiamiento de Partidos Políticos.
